{"text_format":"1","workbook":"xlsx","n_sheets":5,"sheets":["سندات القبض","الهاشمي","محمد الخالدي","ابو سعود","الهديب"],"not_rendered":{"charts":0,"images":1,"macros":1,"external_links":0,"defined_names":11,"comments":0,"pivot_tables":0},"unopened":[],"bounds":{"document_bytes":16777216,"sheet_cells":100000,"rows_first":2000,"rows_last":500,"rows_between":2000,"halvings":0,"cell_chars":16384,"cell_head_chars":4096},"cells_cut":0,"cells_raw":0,"read":"whole","date_system":"1900"}

{"sheet":"سندات القبض","index":0,"n_rows":1391,"n_cols":25,"rows_kept":1391,"cut":false,"hidden":false,"merged":[]}
["الرقم","التاريخ","رقم السند","المستأجر","رقم الجوال","رقم الشقه","البنايه","الفترة من","الفترة الي","المبلغ","التأمين","اتعاب المكتب","مصاريف اداريه","صيانه","مبلغ الضريبة","اسم العميل"]
[{"$f":"IF(B2=\"\",\"\",ROW()-1)","v":1},"2018-02-28",1,"وئل فتحي بوغولة",535266463,103,"الجوهرة","2018-07-09","2019-01-09",16250,0,0,0,0,0,{"$f":"IF(G2=\"\",\"\",VLOOKUP(G2,$X$3:$Y$7,2,0))","v":"الهديب"}]
[{"$f":"IF(B3=\"\",\"\",ROW()-1)","v":2},"2018-02-28",2,"سيد محمد بانا",502233784,2,"البايونيه","2018-10-19","2020-04-19",16250,0,0,0,0,0,{"$f":"IF(G3=\"\",\"\",VLOOKUP(G3,$X$3:$Y$7,2,0))","v":"الهاشمي"},null,null,null,null,null,null,"محمد الخالدي","الخالدي","محمد الخالدي"]
[3,"2018-02-28",3,"محمد",509859849,2,"ناصر","2018-05-24","2019-02-24",16250,0,0,0,0,0,"أبو سعود",null,null,null,null,null,null,"الهاشمي","البايونيه","الهاشمي"]
[4,"2018-02-28",4,"مبارك حسين",538616819,2,"الخالدي","2018-05-16","2019-10-16",16250,0,0,0,0,0,"محمد الخالدي",null,null,null,null,null,null,"الهاشمي","الراكه","الهاشمي"]
["",null,null,null,null,null,null,null,null,null,null,null,null,null,null,"",null,null,null,null,null,null,"الهديب","الجوهرة","الهديب"]
["",null,null,null,null,null,null,null,null,null,null,null,null,null,null,"",null,null,null,null,null,null,"أبو سعود","ناصر","أبو سعود"]
["",null,null,null,null,null,null,null,null,null,null,null,null,null,null,""]
["",null,null,null,null,null,null,null,null,null,null,null,null,null,null,""]
["",null,null,null,null,null,null,null,null,null,null,null,null,null,null,""]
["",null,null,null,null,null,null,null,null,null,null,null,null,null,null,""]
["",null,null,null,null,null,null,null,null,null,null,null,null,null,null,""]
["",null,null,null,null,null,null,null,null,null,null,null,null,null,null,""]
["",null,null,null,null,null,null,null,null,null,null,null,null,null,null,""]
["",null,null,null,null,null,null,null,null,null,null,null,null,null,null,""]
["",null,null,null,null,null,null,null,null,null,null,null,null,null,null,""]
["",null,null,null,null,null,null,null,null,null,null,null,null,null,null,""]
["",null,null,null,null,null,null,null,null,null,null,null,null,null,null,""]
["",null,null,null,null,null,null,null,null,null,null,null,null,null,null,""]
["",null,null,null,null,null,null,null,null,null,null,null,null,null,null,""]
["",null,null,null,null,null,null,null,null,null,null,null,null,null,null,""]
["",null,null,null,null,null,null,null,null,null,null,null,null,null,null,""]
["",null,null,null,null,null,null,null,null,null,null,null,null,null,null,""]
[null,null,null,null,null,null,null,null,null,null,null,null,null,null,null,""]
[null,null,null,null,null,null,null,null,null,null,null,null,null,null,null,""]
[null,null,null,null,null,null,null,null,null,null,null,null,null,null,null,{"$f":"IFERROR(IF(G26=$X$3,$W$3,IF(G26=$X$4,$W$4,IF(G26=$X$5,$W$5,IF(G26=$X$6,$W$6,IF(G26=$X$7,$W$7,\"\"))))),0)","v":""}]
[null,null,null,null,null,null,null,null,null,null,null,null,null,null,null,""]
[null,null,null,null,null,null,null,null,null,null,null,null,null,null,null,""]
[null,null,null,null,null,null,null,null,null,null,null,null,null,null,null,""]
[null,null,null,null,null,null,null,null,null,null,null,null,null,null,null,""]
[null,null,null,null,null,null,null,null,null,null,null,null,null,null,null,""]
[null,null,null,null,null,null,null,null,null,null,null,null,null,null,null,""]
[null,null,null,null,null,null,null,null,null,null,null,null,null,null,null,""]
[null,null,null,null,null,null,null,null,null,null,null,null,null,null,null,""]
[null,null,null,null,null,null,null,null,null,null,null,null,null,null,null,""]
[null,null,null,null,null,null,null,null,null,null,null,null,null,null,null,""]
[null,null,null,null,null,null,null,null,null,null,null,null,null,null,null,""]
[null,null,null,null,null,null,null,null,null,null,null,null,null,null,null,""]
[null,null,null,null,null,null,null,null,null,null,null,null,null,null,null,""]
[null,null,null,null,null,null,null,null,null,null,null,null,null,null,null,""]
[null,null,null,null,null,null,null,null,null,null,null,null,null,null,null,""]
[null,null,null,null,null,null,null,null,null,null,null,null,null,null,null,""]
[null,null,null,null,null,null,null,null,null,null,null,null,null,null,null,""]
[null,null,null,null,null,null,null,null,null,null,null,null,null,null,null,""]
[null,null,null,null,null,null,null,null,null,null,null,null,null,null,null,""]
[null,null,null,null,null,null,null,null,null,null,null,null,null,null,null,""]
[null,null,null,null,null,null,null,null,null,null,null,null,null,null,null,""]
[null,null,null,null,null,null,null,null,null,null,null,null,null,null,null,""]
[null,null,null,null,null,null,null,null,null,null,null,null,null,null,null,""]
[null,null,null,null,null,null,null,null,null,null,null,null,null,null,null,""]
[null,null,null,null,null,null,null,null,null,null,null,null,null,null,null,""]
[null,null,null,null,null,null,null,null,null,null,null,null,null,null,null,""]
[null,null,null,null,null,null,null,null,null,null,null,null,null,null,null,""]
[null,null,null,null,null,null,null,null,null,null,null,null,null,null,null,""]
[null,null,null,null,null,null,null,null,null,null,null,null,null,null,null,""]
[null,null,null,null,null,null,null,null,null,null,null,null,null,null,null,""]
[null,null,null,null,null,null,null,null,null,null,null,null,null,null,null,""]
[null,null,null,null,null,null,null,null,null,null,null,null,null,null,null,""]
[null,null,null,null,null,null,null,null,null,null,null,null,null,null,null,""]
[null,null,null,null,null,null,null,null,null,null,null,null,null,null,null,""]
[null,null,null,null,null,null,null,null,null,null,null,null,null,null,null,""]
[null,null,null,null,null,null,null,null,null,null,null,null,null,null,null,""]
[null,null,null,null,null,null,null,null,null,null,null,null,null,null,null,""]
[null,null,null,null,null,null,null,null,null,null,null,null,null,null,null,""]
[null,null,null,null,null,null,null,null,null,null,null,null,null,null,null,""]
[null,null,null,null,null,null,null,null,null,null,null,null,null,null,null,{"$f":"IFERROR(IF(G66=$X$3,$W$3,IF(G66=$X$4,$W$4,IF(G66=$X$5,$W$5,IF(G66=$X$6,$W$6,IF(G66=$X$7,$W$7,\"\"))))),0)","v":""}]
[null,null,null,null,null,null,null,null,null,null,null,null,null,null,null,""]
[null,null,null,null,null,null,null,null,null,null,null,null,null,null,null,""]
[null,null,null,null,null,null,null,null,null,null,null,null,null,null,null,""]
[null,null,null,null,null,null,null,null,null,null,null,null,null,null,null,""]
[null,null,null,null,null,null,null,null,null,null,null,null,null,null,null,""]
[null,null,null,null,null,null,null,null,null,null,null,null,null,null,null,""]
[null,null,null,null,null,null,null,null,null,null,null,null,null,null,null,""]
[null,null,null,null,null,null,null,null,null,null,null,null,null,null,null,""]
[null,null,null,null,null,null,null,null,null,null,null,null,null,null,null,""]
[null,null,null,null,null,null,null,null,null,null,null,null,null,null,null,""]
[null,null,null,null,null,null,null,null,null,null,null,null,null,null,null,""]
[null,null,null,null,null,null,null,null,null,null,null,null,null,null,null,""]
[null,null,null,null,null,null,null,null,null,null,null,null,null,null,null,""]
[null,null,null,null,null,null,null,null,null,null,null,null,null,null,null,""]
[null,null,null,null,null,null,null,null,null,null,null,null,null,null,null,""]
[null,null,null,null,null,null,null,null,null,null,null,null,null,null,null,""]
[null,null,null,null,null,null,null,null,null,null,null,null,null,null,null,""]
[null,null,null,null,null,null,null,null,null,null,null,null,null,null,null,""]
[null,null,null,null,null,null,null,null,null,null,null,null,null,null,null,""]
[null,null,null,null,null,null,null,null,null,null,null,null,null,null,null,""]
[null,null,null,null,null,null,null,null,null,null,null,null,null,null,null,""]
[null,null,null,null,null,null,null,null,null,null,null,null,null,null,null,""]
[null,null,null,null,null,null,null,null,null,null,null,null,null,null,null,""]
[null,null,null,null,null,null,null,null,null,null,null,null,null,null,null,""]
[null,null,null,null,null,null,null,null,null,null,null,null,null,null,null,""]
[null,null,null,null,null,null,null,null,null,null,null,null,null,null,null,""]
[null,null,null,null,null,null,null,null,null,null,null,null,null,null,null,""]
[null,null,null,null,null,null,null,null,null,null,null,null,null,null,null,""]
[null,null,null,null,null,null,null,null,null,null,null,null,null,null,null,""]
[null,null,null,null,null,null,null,null,null,null,null,null,null,null,null,""]
[null,null,null,null,null,null,null,null,null,null,null,null,null,null,null,""]
[null,null,null,null,null,null,null,null,null,null,null,null,null,null,null,""]
[null,null,null,null,null,null,null,null,null,null,null,null,null,null,null,""]
[null,null,null,null,null,null,null,null,null,null,null,null,null,null,null,""]
[null,null,null,null,null,null,null,null,null,null,null,null,null,null,null,""]
[null,null,null,null,null,null,null,null,null,null,null,null,null,null,null,""]
[null,null,null,null,null,null,null,null,null,null,null,null,null,null,null,""]
[null,null,null,null,null,null,null,null,null,null,null,null,null,null,null,""]
[null,null,null,null,null,null,null,null,null,null,null,null,null,null,null,""]
[null,null,null,null,null,null,null,null,null,null,null,null,null,null,null,""]
[null,null,null,null,null,null,null,null,null,null,null,null,null,null,null,""]
[null,null,null,null,null,null,null,null,null,null,null,null,null,null,null,""]
[null,null,null,null,null,null,null,null,null,null,null,null,null,null,null,""]
[null,null,null,null,null,null,null,null,null,null,null,null,null,null,null,""]
[null,null,null,null,null,null,null,null,null,null,null,null,null,null,null,""]
[null,null,null,null,null,null,null,null,null,null,null,null,null,null,null,""]
[null,null,null,null,null,null,null,null,null,null,null,null,null,null,null,""]
[null,null,null,null,null,null,null,null,null,null,null,null,null,null,null,""]
[null,null,null,null,null,null,null,null,null,null,null,null,null,null,null,""]
[null,null,null,null,null,null,null,null,null,null,null,null,null,null,null,""]
[null,null,null,null,null,null,null,null,null,null,null,null,null,null,null,""]
[null,null,null,null,null,null,null,null,null,null,null,null,null,null,null,""]
[null,null,null,null,null,null,null,null,null,null,null,null,null,null,null,""]
[null,null,null,null,null,null,null,null,null,null,null,null,null,null,null,""]
[null,null,null,null,null,null,null,null,null,null,null,null,null,null,null,""]
[null,null,null,null,null,null,null,null,null,null,null,null,null,null,null,""]
[null,null,null,null,null,null,null,null,null,null,null,null,null,null,null,""]
[null,null,null,null,null,null,null,null,null,null,null,null,null,null,null,""]
[null,null,null,null,null,null,null,null,null,null,null,null,null,null,null,""]
[null,null,null,null,null,null,null,null,null,null,null,null,null,null,null,""]
[null,null,null,null,null,null,null,null,null,null,null,null,null,null,null,""]
[null,null,null,null,null,null,null,null,null,null,null,null,null,null,null,""]
[null,null,null,null,null,null,null,null,null,null,null,null,null,null,null,""]
[null,null,null,null,null,null,null,null,null,null,null,null,null,null,null,{"$f":"IFERROR(IF(G130=$X$3,$W$3,IF(G130=$X$4,$W$4,IF(G130=$X$5,$W$5,IF(G130=$X$6,$W$6,IF(G130=$X$7,$W$7,\"\"))))),0)","v":""}]
[null,null,null,null,null,null,null,null,null,null,null,null,null,null,null,""]
[null,null,null,null,null,null,null,null,null,null,null,null,null,null,null,""]
[null,null,null,null,null,null,null,null,null,null,null,null,null,null,null,""]
[null,null,null,null,null,null,null,null,null,null,null,null,null,null,null,""]
[null,null,null,null,null,null,null,null,null,null,null,null,null,null,null,""]
[null,null,null,null,null,null,null,null,null,null,null,null,null,null,null,""]
[null,null,null,null,null,null,null,null,null,null,null,null,null,null,null,""]
[null,null,null,null,null,null,null,null,null,null,null,null,null,null,null,""]
[null,null,null,null,null,null,null,null,null,null,null,null,null,null,null,""]
[null,null,null,null,null,null,null,null,null,null,null,null,null,null,null,""]
[null,null,null,null,null,null,null,null,null,null,null,null,null,null,null,""]
[null,null,null,null,null,null,null,null,null,null,null,null,null,null,null,""]
[null,null,null,null,null,null,null,null,null,null,null,null,null,null,null,""]
[null,null,null,null,null,null,null,null,null,null,null,null,null,null,null,""]
[null,null,null,null,null,null,null,null,null,null,null,null,null,null,null,""]
[null,null,null,null,null,null,null,null,null,null,null,null,null,null,null,""]
[null,null,null,null,null,null,null,null,null,null,null,null,null,null,null,""]
[null,null,null,null,null,null,null,null,null,null,null,null,null,null,null,""]
[null,null,null,null,null,null,null,null,null,null,null,null,null,null,null,""]
[null,null,null,null,null,null,null,null,null,null,null,null,null,null,null,""]
[null,null,null,null,null,null,null,null,null,null,null,null,null,null,null,""]
[null,null,null,null,null,null,null,null,null,null,null,null,null,null,null,""]
[null,null,null,null,null,null,null,null,null,null,null,null,null,null,null,""]
[null,null,null,null,null,null,null,null,null,null,null,null,null,null,null,""]
[null,null,null,null,null,null,null,null,null,null,null,null,null,null,null,""]
[null,null,null,null,null,null,null,null,null,null,null,null,null,null,null,""]
[null,null,null,null,null,null,null,null,null,null,null,null,null,null,null,""]
[null,null,null,null,null,null,null,null,null,null,null,null,null,null,null,""]
[null,null,null,null,null,null,null,null,null,null,null,null,null,null,null,""]
[null,null,null,null,null,null,null,null,null,null,null,null,null,null,null,""]
[null,null,null,null,null,null,null,null,null,null,null,null,null,null,null,""]
[null,null,null,null,null,null,null,null,null,null,null,null,null,null,null,""]
[null,null,null,null,null,null,null,null,null,null,null,null,null,null,null,""]
[null,null,null,null,null,null,null,null,null,null,null,null,null,null,null,""]
[null,null,null,null,null,null,null,null,null,null,null,null,null,null,null,""]
[null,null,null,null,null,null,null,null,null,null,null,null,null,null,null,""]
[null,null,null,null,null,null,null,null,null,null,null,null,null,null,null,""]
[null,null,null,null,null,null,null,null,null,null,null,null,null,null,null,""]
[null,null,null,null,null,null,null,null,null,null,null,null,null,null,null,""]
[null,null,null,null,null,null,null,null,null,null,null,null,null,null,null,""]
[null,null,null,null,null,null,null,null,null,null,null,null,null,null,null,""]
[null,null,null,null,null,null,null,null,null,null,null,null,null,null,null,""]
[null,null,null,null,null,null,null,null,null,null,null,null,null,null,null,""]
[null,null,null,null,null,null,null,null,null,null,null,null,null,null,null,""]
[null,null,null,null,null,null,null,null,null,null,null,null,null,null,null,""]
[null,null,null,null,null,null,null,null,null,null,null,null,null,null,null,""]
[null,null,null,null,null,null,null,null,null,null,null,null,null,null,null,""]
[null,null,null,null,null,null,null,null,null,null,null,null,null,null,null,""]
[null,null,null,null,null,null,null,null,null,null,null,null,null,null,null,""]
[null,null,null,null,null,null,null,null,null,null,null,null,null,null,null,""]
[null,null,null,null,null,null,null,null,null,null,null,null,null,null,null,""]
[null,null,null,null,null,null,null,null,null,null,null,null,null,null,null,""]
[null,null,null,null,null,null,null,null,null,null,null,null,null,null,null,""]
[null,null,null,null,null,null,null,null,null,null,null,null,null,null,null,""]
[null,null,null,null,null,null,null,null,null,null,null,null,null,null,null,""]
[null,null,null,null,null,null,null,null,null,null,null,null,null,null,null,""]
[null,null,null,null,null,null,null,null,null,null,null,null,null,null,null,""]
[null,null,null,null,null,null,null,null,null,null,null,null,null,null,null,""]
[null,null,null,null,null,null,null,null,null,null,null,null,null,null,null,""]
[null,null,null,null,null,null,null,null,null,null,null,null,null,null,null,""]
[null,null,null,null,null,null,null,null,null,null,null,null,null,null,null,""]
[null,null,null,null,null,null,null,null,null,null,null,null,null,null,null,""]
[null,null,null,null,null,null,null,null,null,null,null,null,null,null,null,""]
[null,null,null,null,null,null,null,null,null,null,null,null,null,null,null,{"$f":"IFERROR(IF(G194=$X$3,$W$3,IF(G194=$X$4,$W$4,IF(G194=$X$5,$W$5,IF(G194=$X$6,$W$6,IF(G194=$X$7,$W$7,\"\"))))),0)","v":""}]
[null,null,null,null,null,null,null,null,null,null,null,null,null,null,null,""]
[null,null,null,null,null,null,null,null,null,null,null,null,null,null,null,""]
[null,null,null,null,null,null,null,null,null,null,null,null,null,null,null,""]
[null,null,null,null,null,null,null,null,null,null,null,null,null,null,null,""]
[null,null,null,null,null,null,null,null,null,null,null,null,null,null,null,""]
[null,null,null,null,null,null,null,null,null,null,null,null,null,null,null,""]
[null,null,null,null,null,null,null,null,null,null,null,null,null,null,null,""]
[null,null,null,null,null,null,null,null,null,null,null,null,null,null,null,""]
[null,null,null,null,null,null,null,null,null,null,null,null,null,null,null,""]
[null,null,null,null,null,null,null,null,null,null,null,null,null,null,null,""]
[null,null,null,null,null,null,null,null,null,null,null,null,null,null,null,""]
[null,null,null,null,null,null,null,null,null,null,null,null,null,null,null,""]
[null,null,null,null,null,null,null,null,null,null,null,null,null,null,null,""]
[null,null,null,null,null,null,null,null,null,null,null,null,null,null,null,""]
[null,null,null,null,null,null,null,null,null,null,null,null,null,null,null,""]
[null,null,null,null,null,null,null,null,null,null,null,null,null,null,null,""]
[null,null,null,null,null,null,null,null,null,null,null,null,null,null,null,""]
[null,null,null,null,null,null,null,null,null,null,null,null,null,null,null,""]
[null,null,null,null,null,null,null,null,null,null,null,null,null,null,null,""]
[null,null,null,null,null,null,null,null,null,null,null,null,null,null,null,""]
[null,null,null,null,null,null,null,null,null,null,null,null,null,null,null,""]
[null,null,null,null,null,null,null,null,null,null,null,null,null,null,null,""]
[null,null,null,null,null,null,null,null,null,null,null,null,null,null,null,""]
[null,null,null,null,null,null,null,null,null,null,null,null,null,null,null,""]
[null,null,null,null,null,null,null,null,null,null,null,null,null,null,null,""]
[null,null,null,null,null,null,null,null,null,null,null,null,null,null,null,""]
[null,null,null,null,null,null,null,null,null,null,null,null,null,null,null,""]
[null,null,null,null,null,null,null,null,null,null,null,null,null,null,null,""]
[null,null,null,null,null,null,null,null,null,null,null,null,null,null,null,""]
[null,null,null,null,null,null,null,null,null,null,null,null,null,null,null,""]
[null,null,null,null,null,null,null,null,null,null,null,null,null,null,null,""]
[null,null,null,null,null,null,null,null,null,null,null,null,null,null,null,""]
[null,null,null,null,null,null,null,null,null,null,null,null,null,null,null,""]
[null,null,null,null,null,null,null,null,null,null,null,null,null,null,null,""]
[null,null,null,null,null,null,null,null,null,null,null,null,null,null,null,""]
[null,null,null,null,null,null,null,null,null,null,null,null,null,null,null,""]
[null,null,null,null,null,null,null,null,null,null,null,null,null,null,null,""]
[null,null,null,null,null,null,null,null,null,null,null,null,null,null,null,""]
[null,null,null,null,null,null,null,null,null,null,null,null,null,null,null,""]
[null,null,null,null,null,null,null,null,null,null,null,null,null,null,null,""]
[null,null,null,null,null,null,null,null,null,null,null,null,null,null,null,""]
[null,null,null,null,null,null,null,null,null,null,null,null,null,null,null,""]
[null,null,null,null,null,null,null,null,null,null,null,null,null,null,null,""]
[null,null,null,null,null,null,null,null,null,null,null,null,null,null,null,""]
[null,null,null,null,null,null,null,null,null,null,null,null,null,null,null,""]
[null,null,null,null,null,null,null,null,null,null,null,null,null,null,null,""]
[null,null,null,null,null,null,null,null,null,null,null,null,null,null,null,""]
[null,null,null,null,null,null,null,null,null,null,null,null,null,null,null,""]
[null,null,null,null,null,null,null,null,null,null,null,null,null,null,null,""]
[null,null,null,null,null,null,null,null,null,null,null,null,null,null,null,""]
[null,null,null,null,null,null,null,null,null,null,null,null,null,null,null,""]
[null,null,null,null,null,null,null,null,null,null,null,null,null,null,null,""]
[null,null,null,null,null,null,null,null,null,null,null,null,null,null,null,""]
[null,null,null,null,null,null,null,null,null,null,null,null,null,null,null,""]
[null,null,null,null,null,null,null,null,null,null,null,null,null,null,null,""]
[null,null,null,null,null,null,null,null,null,null,null,null,null,null,null,""]
[null,null,null,null,null,null,null,null,null,null,null,null,null,null,null,""]
[null,null,null,null,null,null,null,null,null,null,null,null,null,null,null,""]
[null,null,null,null,null,null,null,null,null,null,null,null,null,null,null,""]
[null,null,null,null,null,null,null,null,null,null,null,null,null,null,null,""]
[null,null,null,null,null,null,null,null,null,null,null,null,null,null,null,""]
[null,null,null,null,null,null,null,null,null,null,null,null,null,null,null,""]
[null,null,null,null,null,null,null,null,null,null,null,null,null,null,null,""]
[null,null,null,null,null,null,null,null,null,null,null,null,null,null,null,{"$f":"IFERROR(IF(G258=$X$3,$W$3,IF(G258=$X$4,$W$4,IF(G258=$X$5,$W$5,IF(G258=$X$6,$W$6,IF(G258=$X$7,$W$7,\"\"))))),0)","v":""}]
[null,null,null,null,null,null,null,null,null,null,null,null,null,null,null,""]
[null,null,null,null,null,null,null,null,null,null,null,null,null,null,null,""]
[null,null,null,null,null,null,null,null,null,null,null,null,null,null,null,""]
[null,null,null,null,null,null,null,null,null,null,null,null,null,null,null,""]
[null,null,null,null,null,null,null,null,null,null,null,null,null,null,null,""]
[null,null,null,null,null,null,null,null,null,null,null,null,null,null,null,""]
[null,null,null,null,null,null,null,null,null,null,null,null,null,null,null,""]
[null,null,null,null,null,null,null,null,null,null,null,null,null,null,null,""]
[null,null,null,null,null,null,null,null,null,null,null,null,null,null,null,""]
[null,null,null,null,null,null,null,null,null,null,null,null,null,null,null,""]
[null,null,null,null,null,null,null,null,null,null,null,null,null,null,null,""]
[null,null,null,null,null,null,null,null,null,null,null,null,null,null,null,""]
[null,null,null,null,null,null,null,null,null,null,null,null,null,null,null,""]
[null,null,null,null,null,null,null,null,null,null,null,null,null,null,null,""]
[null,null,null,null,null,null,null,null,null,null,null,null,null,null,null,""]
[null,null,null,null,null,null,null,null,null,null,null,null,null,null,null,""]
[null,null,null,null,null,null,null,null,null,null,null,null,null,null,null,""]
[null,null,null,null,null,null,null,null,null,null,null,null,null,null,null,""]
[null,null,null,null,null,null,null,null,null,null,null,null,null,null,null,""]
[null,null,null,null,null,null,null,null,null,null,null,null,null,null,null,""]
[null,null,null,null,null,null,null,null,null,null,null,null,null,null,null,""]
[null,null,null,null,null,null,null,null,null,null,null,null,null,null,null,""]
[null,null,null,null,null,null,null,null,null,null,null,null,null,null,null,""]
[null,null,null,null,null,null,null,null,null,null,null,null,null,null,null,""]
[null,null,null,null,null,null,null,null,null,null,null,null,null,null,null,""]
[null,null,null,null,null,null,null,null,null,null,null,null,null,null,null,""]
[null,null,null,null,null,null,null,null,null,null,null,null,null,null,null,""]
[null,null,null,null,null,null,null,null,null,null,null,null,null,null,null,""]
[null,null,null,null,null,null,null,null,null,null,null,null,null,null,null,""]
[null,null,null,null,null,null,null,null,null,null,null,null,null,null,null,""]
[null,null,null,null,null,null,null,null,null,null,null,null,null,null,null,""]
[null,null,null,null,null,null,null,null,null,null,null,null,null,null,null,""]
[null,null,null,null,null,null,null,null,null,null,null,null,null,null,null,""]
[null,null,null,null,null,null,null,null,null,null,null,null,null,null,null,""]
[null,null,null,null,null,null,null,null,null,null,null,null,null,null,null,""]
[null,null,null,null,null,null,null,null,null,null,null,null,null,null,null,""]
[null,null,null,null,null,null,null,null,null,null,null,null,null,null,null,""]
[null,null,null,null,null,null,null,null,null,null,null,null,null,null,null,""]
[null,null,null,null,null,null,null,null,null,null,null,null,null,null,null,""]
[null,null,null,null,null,null,null,null,null,null,null,null,null,null,null,""]
[null,null,null,null,null,null,null,null,null,null,null,null,null,null,null,""]
[null,null,null,null,null,null,null,null,null,null,null,null,null,null,null,""]
[null,null,null,null,null,null,null,null,null,null,null,null,null,null,null,""]
[null,null,null,null,null,null,null,null,null,null,null,null,null,null,null,""]
[null,null,null,null,null,null,null,null,null,null,null,null,null,null,null,""]
[null,null,null,null,null,null,null,null,null,null,null,null,null,null,null,""]
[null,null,null,null,null,null,null,null,null,null,null,null,null,null,null,""]
[null,null,null,null,null,null,null,null,null,null,null,null,null,null,null,""]
[null,null,null,null,null,null,null,null,null,null,null,null,null,null,null,""]
[null,null,null,null,null,null,null,null,null,null,null,null,null,null,null,""]
[null,null,null,null,null,null,null,null,null,null,null,null,null,null,null,""]
[null,null,null,null,null,null,null,null,null,null,null,null,null,null,null,""]
[null,null,null,null,null,null,null,null,null,null,null,null,null,null,null,""]
[null,null,null,null,null,null,null,null,null,null,null,null,null,null,null,""]
[null,null,null,null,null,null,null,null,null,null,null,null,null,null,null,""]
[null,null,null,null,null,null,null,null,null,null,null,null,null,null,null,""]
[null,null,null,null,null,null,null,null,null,null,null,null,null,null,null,""]
[null,null,null,null,null,null,null,null,null,null,null,null,null,null,null,""]
[null,null,null,null,null,null,null,null,null,null,null,null,null,null,null,""]
[null,null,null,null,null,null,null,null,null,null,null,null,null,null,null,""]
[null,null,null,null,null,null,null,null,null,null,null,null,null,null,null,""]
[null,null,null,null,null,null,null,null,null,null,null,null,null,null,null,""]
[null,null,null,null,null,null,null,null,null,null,null,null,null,null,null,""]
[null,null,null,null,null,null,null,null,null,null,null,null,null,null,null,{"$f":"IFERROR(IF(G322=$X$3,$W$3,IF(G322=$X$4,$W$4,IF(G322=$X$5,$W$5,IF(G322=$X$6,$W$6,IF(G322=$X$7,$W$7,\"\"))))),0)","v":""}]
[null,null,null,null,null,null,null,null,null,null,null,null,null,null,null,""]
[null,null,null,null,null,null,null,null,null,null,null,null,null,null,null,""]
[null,null,null,null,null,null,null,null,null,null,null,null,null,null,null,""]
[null,null,null,null,null,null,null,null,null,null,null,null,null,null,null,""]
[null,null,null,null,null,null,null,null,null,null,null,null,null,null,null,""]
[null,null,null,null,null,null,null,null,null,null,null,null,null,null,null,""]
[null,null,null,null,null,null,null,null,null,null,null,null,null,null,null,""]
[null,null,null,null,null,null,null,null,null,null,null,null,null,null,null,""]
[null,null,null,null,null,null,null,null,null,null,null,null,null,null,null,""]
[null,null,null,null,null,null,null,null,null,null,null,null,null,null,null,""]
[null,null,null,null,null,null,null,null,null,null,null,null,null,null,null,""]
[null,null,null,null,null,null,null,null,null,null,null,null,null,null,null,""]
[null,null,null,null,null,null,null,null,null,null,null,null,null,null,null,""]
[null,null,null,null,null,null,null,null,null,null,null,null,null,null,null,""]
[null,null,null,null,null,null,null,null,null,null,null,null,null,null,null,""]
[null,null,null,null,null,null,null,null,null,null,null,null,null,null,null,""]
[null,null,null,null,null,null,null,null,null,null,null,null,null,null,null,""]
[null,null,null,null,null,null,null,null,null,null,null,null,null,null,null,""]
[null,null,null,null,null,null,null,null,null,null,null,null,null,null,null,""]
[null,null,null,null,null,null,null,null,null,null,null,null,null,null,null,""]
[null,null,null,null,null,null,null,null,null,null,null,null,null,null,null,""]
[null,null,null,null,null,null,null,null,null,null,null,null,null,null,null,""]
[null,null,null,null,null,null,null,null,null,null,null,null,null,null,null,""]
[null,null,null,null,null,null,null,null,null,null,null,null,null,null,null,""]
[null,null,null,null,null,null,null,null,null,null,null,null,null,null,null,""]
[null,null,null,null,null,null,null,null,null,null,null,null,null,null,null,""]
[null,null,null,null,null,null,null,null,null,null,null,null,null,null,null,""]
[null,null,null,null,null,null,null,null,null,null,null,null,null,null,null,""]
[null,null,null,null,null,null,null,null,null,null,null,null,null,null,null,""]
[null,null,null,null,null,null,null,null,null,null,null,null,null,null,null,""]
[null,null,null,null,null,null,null,null,null,null,null,null,null,null,null,""]
[null,null,null,null,null,null,null,null,null,null,null,null,null,null,null,""]
[null,null,null,null,null,null,null,null,null,null,null,null,null,null,null,""]
[null,null,null,null,null,null,null,null,null,null,null,null,null,null,null,""]
[null,null,null,null,null,null,null,null,null,null,null,null,null,null,null,""]
[null,null,null,null,null,null,null,null,null,null,null,null,null,null,null,""]
[null,null,null,null,null,null,null,null,null,null,null,null,null,null,null,""]
[null,null,null,null,null,null,null,null,null,null,null,null,null,null,null,""]
[null,null,null,null,null,null,null,null,null,null,null,null,null,null,null,""]
[null,null,null,null,null,null,null,null,null,null,null,null,null,null,null,""]
[null,null,null,null,null,null,null,null,null,null,null,null,null,null,null,""]
[null,null,null,null,null,null,null,null,null,null,null,null,null,null,null,""]
[null,null,null,null,null,null,null,null,null,null,null,null,null,null,null,""]
[null,null,null,null,null,null,null,null,null,null,null,null,null,null,null,""]
[null,null,null,null,null,null,null,null,null,null,null,null,null,null,null,""]
[null,null,null,null,null,null,null,null,null,null,null,null,null,null,null,""]
[null,null,null,null,null,null,null,null,null,null,null,null,null,null,null,""]
[null,null,null,null,null,null,null,null,null,null,null,null,null,null,null,""]
[null,null,null,null,null,null,null,null,null,null,null,null,null,null,null,""]
[null,null,null,null,null,null,null,null,null,null,null,null,null,null,null,""]
[null,null,null,null,null,null,null,null,null,null,null,null,null,null,null,""]
[null,null,null,null,null,null,null,null,null,null,null,null,null,null,null,""]
[null,null,null,null,null,null,null,null,null,null,null,null,null,null,null,""]
[null,null,null,null,null,null,null,null,null,null,null,null,null,null,null,""]
[null,null,null,null,null,null,null,null,null,null,null,null,null,null,null,""]
[null,null,null,null,null,null,null,null,null,null,null,null,null,null,null,""]
[null,null,null,null,null,null,null,null,null,null,null,null,null,null,null,""]
[null,null,null,null,null,null,null,null,null,null,null,null,null,null,null,""]
[null,null,null,null,null,null,null,null,null,null,null,null,null,null,null,""]
[null,null,null,null,null,null,null,null,null,null,null,null,null,null,null,""]
[null,null,null,null,null,null,null,null,null,null,null,null,null,null,null,""]
[null,null,null,null,null,null,null,null,null,null,null,null,null,null,null,""]
[null,null,null,null,null,null,null,null,null,null,null,null,null,null,null,""]
[null,null,null,null,null,null,null,null,null,null,null,null,null,null,null,{"$f":"IFERROR(IF(G386=$X$3,$W$3,IF(G386=$X$4,$W$4,IF(G386=$X$5,$W$5,IF(G386=$X$6,$W$6,IF(G386=$X$7,$W$7,\"\"))))),0)","v":""}]
[null,null,null,null,null,null,null,null,null,null,null,null,null,null,null,""]
[null,null,null,null,null,null,null,null,null,null,null,null,null,null,null,""]
[null,null,null,null,null,null,null,null,null,null,null,null,null,null,null,""]
[null,null,null,null,null,null,null,null,null,null,null,null,null,null,null,""]
[null,null,null,null,null,null,null,null,null,null,null,null,null,null,null,""]
[null,null,null,null,null,null,null,null,null,null,null,null,null,null,null,""]
[null,null,null,null,null,null,null,null,null,null,null,null,null,null,null,""]
[null,null,null,null,null,null,null,null,null,null,null,null,null,null,null,""]
[null,null,null,null,null,null,null,null,null,null,null,null,null,null,null,""]
[null,null,null,null,null,null,null,null,null,null,null,null,null,null,null,""]
[null,null,null,null,null,null,null,null,null,null,null,null,null,null,null,""]
[null,null,null,null,null,null,null,null,null,null,null,null,null,null,null,""]
[null,null,null,null,null,null,null,null,null,null,null,null,null,null,null,""]
[null,null,null,null,null,null,null,null,null,null,null,null,null,null,null,""]
[null,null,null,null,null,null,null,null,null,null,null,null,null,null,null,""]
[null,null,null,null,null,null,null,null,null,null,null,null,null,null,null,""]
[null,null,null,null,null,null,null,null,null,null,null,null,null,null,null,""]
[null,null,null,null,null,null,null,null,null,null,null,null,null,null,null,""]
[null,null,null,null,null,null,null,null,null,null,null,null,null,null,null,""]
[null,null,null,null,null,null,null,null,null,null,null,null,null,null,null,""]
[null,null,null,null,null,null,null,null,null,null,null,null,null,null,null,""]
[null,null,null,null,null,null,null,null,null,null,null,null,null,null,null,""]
[null,null,null,null,null,null,null,null,null,null,null,null,null,null,null,""]
[null,null,null,null,null,null,null,null,null,null,null,null,null,null,null,""]
[null,null,null,null,null,null,null,null,null,null,null,null,null,null,null,""]
[null,null,null,null,null,null,null,null,null,null,null,null,null,null,null,""]
[null,null,null,null,null,null,null,null,null,null,null,null,null,null,null,""]
[null,null,null,null,null,null,null,null,null,null,null,null,null,null,null,""]
[null,null,null,null,null,null,null,null,null,null,null,null,null,null,null,""]
[null,null,null,null,null,null,null,null,null,null,null,null,null,null,null,""]
[null,null,null,null,null,null,null,null,null,null,null,null,null,null,null,""]
[null,null,null,null,null,null,null,null,null,null,null,null,null,null,null,""]
[null,null,null,null,null,null,null,null,null,null,null,null,null,null,null,""]
[null,null,null,null,null,null,null,null,null,null,null,null,null,null,null,""]
[null,null,null,null,null,null,null,null,null,null,null,null,null,null,null,""]
[null,null,null,null,null,null,null,null,null,null,null,null,null,null,null,""]
[null,null,null,null,null,null,null,null,null,null,null,null,null,null,null,""]
[null,null,null,null,null,null,null,null,null,null,null,null,null,null,null,""]
[null,null,null,null,null,null,null,null,null,null,null,null,null,null,null,""]
[null,null,null,null,null,null,null,null,null,null,null,null,null,null,null,""]
[null,null,null,null,null,null,null,null,null,null,null,null,null,null,null,""]
[null,null,null,null,null,null,null,null,null,null,null,null,null,null,null,""]
[null,null,null,null,null,null,null,null,null,null,null,null,null,null,null,""]
[null,null,null,null,null,null,null,null,null,null,null,null,null,null,null,""]
[null,null,null,null,null,null,null,null,null,null,null,null,null,null,null,""]
[null,null,null,null,null,null,null,null,null,null,null,null,null,null,null,""]
[null,null,null,null,null,null,null,null,null,null,null,null,null,null,null,""]
[null,null,null,null,null,null,null,null,null,null,null,null,null,null,null,""]
[null,null,null,null,null,null,null,null,null,null,null,null,null,null,null,""]
[null,null,null,null,null,null,null,null,null,null,null,null,null,null,null,""]
[null,null,null,null,null,null,null,null,null,null,null,null,null,null,null,""]
[null,null,null,null,null,null,null,null,null,null,null,null,null,null,null,""]
[null,null,null,null,null,null,null,null,null,null,null,null,null,null,null,""]
[null,null,null,null,null,null,null,null,null,null,null,null,null,null,null,""]
[null,null,null,null,null,null,null,null,null,null,null,null,null,null,null,""]
[null,null,null,null,null,null,null,null,null,null,null,null,null,null,null,""]
[null,null,null,null,null,null,null,null,null,null,null,null,null,null,null,""]
[null,null,null,null,null,null,null,null,null,null,null,null,null,null,null,""]
[null,null,null,null,null,null,null,null,null,null,null,null,null,null,null,""]
[null,null,null,null,null,null,null,null,null,null,null,null,null,null,null,""]
[null,null,null,null,null,null,null,null,null,null,null,null,null,null,null,""]
[null,null,null,null,null,null,null,null,null,null,null,null,null,null,null,""]
[null,null,null,null,null,null,null,null,null,null,null,null,null,null,null,""]
[null,null,null,null,null,null,null,null,null,null,null,null,null,null,null,{"$f":"IFERROR(IF(G450=$X$3,$W$3,IF(G450=$X$4,$W$4,IF(G450=$X$5,$W$5,IF(G450=$X$6,$W$6,IF(G450=$X$7,$W$7,\"\"))))),0)","v":""}]
[null,null,null,null,null,null,null,null,null,null,null,null,null,null,null,""]
[null,null,null,null,null,null,null,null,null,null,null,null,null,null,null,""]
[null,null,null,null,null,null,null,null,null,null,null,null,null,null,null,""]
[null,null,null,null,null,null,null,null,null,null,null,null,null,null,null,""]
[null,null,null,null,null,null,null,null,null,null,null,null,null,null,null,""]
[null,null,null,null,null,null,null,null,null,null,null,null,null,null,null,""]
[null,null,null,null,null,null,null,null,null,null,null,null,null,null,null,""]
[null,null,null,null,null,null,null,null,null,null,null,null,null,null,null,""]
[null,null,null,null,null,null,null,null,null,null,null,null,null,null,null,""]
[null,null,null,null,null,null,null,null,null,null,null,null,null,null,null,""]
[null,null,null,null,null,null,null,null,null,null,null,null,null,null,null,""]
[null,null,null,null,null,null,null,null,null,null,null,null,null,null,null,""]
[null,null,null,null,null,null,null,null,null,null,null,null,null,null,null,""]
[null,null,null,null,null,null,null,null,null,null,null,null,null,null,null,""]
[null,null,null,null,null,null,null,null,null,null,null,null,null,null,null,""]
[null,null,null,null,null,null,null,null,null,null,null,null,null,null,null,""]
[null,null,null,null,null,null,null,null,null,null,null,null,null,null,null,""]
[null,null,null,null,null,null,null,null,null,null,null,null,null,null,null,""]
[null,null,null,null,null,null,null,null,null,null,null,null,null,null,null,""]
[null,null,null,null,null,null,null,null,null,null,null,null,null,null,null,""]
[null,null,null,null,null,null,null,null,null,null,null,null,null,null,null,""]
[null,null,null,null,null,null,null,null,null,null,null,null,null,null,null,""]
[null,null,null,null,null,null,null,null,null,null,null,null,null,null,null,""]
[null,null,null,null,null,null,null,null,null,null,null,null,null,null,null,""]
[null,null,null,null,null,null,null,null,null,null,null,null,null,null,null,""]
[null,null,null,null,null,null,null,null,null,null,null,null,null,null,null,""]
[null,null,null,null,null,null,null,null,null,null,null,null,null,null,null,""]
[null,null,null,null,null,null,null,null,null,null,null,null,null,null,null,""]
[null,null,null,null,null,null,null,null,null,null,null,null,null,null,null,""]
[null,null,null,null,null,null,null,null,null,null,null,null,null,null,null,""]
[null,null,null,null,null,null,null,null,null,null,null,null,null,null,null,""]
[null,null,null,null,null,null,null,null,null,null,null,null,null,null,null,""]
[null,null,null,null,null,null,null,null,null,null,null,null,null,null,null,""]
[null,null,null,null,null,null,null,null,null,null,null,null,null,null,null,""]
[null,null,null,null,null,null,null,null,null,null,null,null,null,null,null,""]
[null,null,null,null,null,null,null,null,null,null,null,null,null,null,null,""]
[null,null,null,null,null,null,null,null,null,null,null,null,null,null,null,""]
[null,null,null,null,null,null,null,null,null,null,null,null,null,null,null,""]
[null,null,null,null,null,null,null,null,null,null,null,null,null,null,null,""]
[null,null,null,null,null,null,null,null,null,null,null,null,null,null,null,""]
[null,null,null,null,null,null,null,null,null,null,null,null,null,null,null,""]
[null,null,null,null,null,null,null,null,null,null,null,null,null,null,null,""]
[null,null,null,null,null,null,null,null,null,null,null,null,null,null,null,""]
[null,null,null,null,null,null,null,null,null,null,null,null,null,null,null,""]
[null,null,null,null,null,null,null,null,null,null,null,null,null,null,null,""]
[null,null,null,null,null,null,null,null,null,null,null,null,null,null,null,""]
[null,null,null,null,null,null,null,null,null,null,null,null,null,null,null,""]
[null,null,null,null,null,null,null,null,null,null,null,null,null,null,null,""]
[null,null,null,null,null,null,null,null,null,null,null,null,null,null,null,""]
[null,null,null,null,null,null,null,null,null,null,null,null,null,null,null,""]
[null,null,null,null,null,null,null,null,null,null,null,null,null,null,null,""]
[null,null,null,null,null,null,null,null,null,null,null,null,null,null,null,""]
[null,null,null,null,null,null,null,null,null,null,null,null,null,null,null,""]
[null,null,null,null,null,null,null,null,null,null,null,null,null,null,null,""]
[null,null,null,null,null,null,null,null,null,null,null,null,null,null,null,""]
[null,null,null,null,null,null,null,null,null,null,null,null,null,null,null,""]
[null,null,null,null,null,null,null,null,null,null,null,null,null,null,null,""]
[null,null,null,null,null,null,null,null,null,null,null,null,null,null,null,""]
[null,null,null,null,null,null,null,null,null,null,null,null,null,null,null,""]
[null,null,null,null,null,null,null,null,null,null,null,null,null,null,null,""]
[null,null,null,null,null,null,null,null,null,null,null,null,null,null,null,""]
[null,null,null,null,null,null,null,null,null,null,null,null,null,null,null,""]
[null,null,null,null,null,null,null,null,null,null,null,null,null,null,null,""]
[null,null,null,null,null,null,null,null,null,null,null,null,null,null,null,{"$f":"IFERROR(IF(G514=$X$3,$W$3,IF(G514=$X$4,$W$4,IF(G514=$X$5,$W$5,IF(G514=$X$6,$W$6,IF(G514=$X$7,$W$7,\"\"))))),0)","v":""}]
[null,null,null,null,null,null,null,null,null,null,null,null,null,null,null,""]
[null,null,null,null,null,null,null,null,null,null,null,null,null,null,null,""]
[null,null,null,null,null,null,null,null,null,null,null,null,null,null,null,""]
[null,null,null,null,null,null,null,null,null,null,null,null,null,null,null,""]
[null,null,null,null,null,null,null,null,null,null,null,null,null,null,null,""]
[null,null,null,null,null,null,null,null,null,null,null,null,null,null,null,""]
[null,null,null,null,null,null,null,null,null,null,null,null,null,null,null,""]
[null,null,null,null,null,null,null,null,null,null,null,null,null,null,null,""]
[null,null,null,null,null,null,null,null,null,null,null,null,null,null,null,""]
[null,null,null,null,null,null,null,null,null,null,null,null,null,null,null,""]
[null,null,null,null,null,null,null,null,null,null,null,null,null,null,null,""]
[null,null,null,null,null,null,null,null,null,null,null,null,null,null,null,""]
[null,null,null,null,null,null,null,null,null,null,null,null,null,null,null,""]
[null,null,null,null,null,null,null,null,null,null,null,null,null,null,null,""]
[null,null,null,null,null,null,null,null,null,null,null,null,null,null,null,""]
[null,null,null,null,null,null,null,null,null,null,null,null,null,null,null,""]
[null,null,null,null,null,null,null,null,null,null,null,null,null,null,null,""]
[null,null,null,null,null,null,null,null,null,null,null,null,null,null,null,""]
[null,null,null,null,null,null,null,null,null,null,null,null,null,null,null,""]
[null,null,null,null,null,null,null,null,null,null,null,null,null,null,null,""]
[null,null,null,null,null,null,null,null,null,null,null,null,null,null,null,""]
[null,null,null,null,null,null,null,null,null,null,null,null,null,null,null,""]
[null,null,null,null,null,null,null,null,null,null,null,null,null,null,null,""]
[null,null,null,null,null,null,null,null,null,null,null,null,null,null,null,""]
[null,null,null,null,null,null,null,null,null,null,null,null,null,null,null,""]
[null,null,null,null,null,null,null,null,null,null,null,null,null,null,null,""]
[null,null,null,null,null,null,null,null,null,null,null,null,null,null,null,""]
[null,null,null,null,null,null,null,null,null,null,null,null,null,null,null,""]
[null,null,null,null,null,null,null,null,null,null,null,null,null,null,null,""]
[null,null,null,null,null,null,null,null,null,null,null,null,null,null,null,""]
[null,null,null,null,null,null,null,null,null,null,null,null,null,null,null,""]
[null,null,null,null,null,null,null,null,null,null,null,null,null,null,null,""]
[null,null,null,null,null,null,null,null,null,null,null,null,null,null,null,""]
[null,null,null,null,null,null,null,null,null,null,null,null,null,null,null,""]
[null,null,null,null,null,null,null,null,null,null,null,null,null,null,null,""]
[null,null,null,null,null,null,null,null,null,null,null,null,null,null,null,""]
[null,null,null,null,null,null,null,null,null,null,null,null,null,null,null,""]
[null,null,null,null,null,null,null,null,null,null,null,null,null,null,null,""]
[null,null,null,null,null,null,null,null,null,null,null,null,null,null,null,""]
[null,null,null,null,null,null,null,null,null,null,null,null,null,null,null,""]
[null,null,null,null,null,null,null,null,null,null,null,null,null,null,null,""]
[null,null,null,null,null,null,null,null,null,null,null,null,null,null,null,""]
[null,null,null,null,null,null,null,null,null,null,null,null,null,null,null,""]
[null,null,null,null,null,null,null,null,null,null,null,null,null,null,null,""]
[null,null,null,null,null,null,null,null,null,null,null,null,null,null,null,""]
[null,null,null,null,null,null,null,null,null,null,null,null,null,null,null,""]
[null,null,null,null,null,null,null,null,null,null,null,null,null,null,null,""]
[null,null,null,null,null,null,null,null,null,null,null,null,null,null,null,""]
[null,null,null,null,null,null,null,null,null,null,null,null,null,null,null,""]
[null,null,null,null,null,null,null,null,null,null,null,null,null,null,null,""]
[null,null,null,null,null,null,null,null,null,null,null,null,null,null,null,""]
[null,null,null,null,null,null,null,null,null,null,null,null,null,null,null,""]
[null,null,null,null,null,null,null,null,null,null,null,null,null,null,null,""]
[null,null,null,null,null,null,null,null,null,null,null,null,null,null,null,""]
[null,null,null,null,null,null,null,null,null,null,null,null,null,null,null,""]
[null,null,null,null,null,null,null,null,null,null,null,null,null,null,null,""]
[null,null,null,null,null,null,null,null,null,null,null,null,null,null,null,""]
[null,null,null,null,null,null,null,null,null,null,null,null,null,null,null,""]
[null,null,null,null,null,null,null,null,null,null,null,null,null,null,null,""]
[null,null,null,null,null,null,null,null,null,null,null,null,null,null,null,""]
[null,null,null,null,null,null,null,null,null,null,null,null,null,null,null,""]
[null,null,null,null,null,null,null,null,null,null,null,null,null,null,null,""]
[null,null,null,null,null,null,null,null,null,null,null,null,null,null,null,""]
[null,null,null,null,null,null,null,null,null,null,null,null,null,null,null,{"$f":"IFERROR(IF(G578=$X$3,$W$3,IF(G578=$X$4,$W$4,IF(G578=$X$5,$W$5,IF(G578=$X$6,$W$6,IF(G578=$X$7,$W$7,\"\"))))),0)","v":""}]
[null,null,null,null,null,null,null,null,null,null,null,null,null,null,null,""]
[null,null,null,null,null,null,null,null,null,null,null,null,null,null,null,""]
[null,null,null,null,null,null,null,null,null,null,null,null,null,null,null,""]
[null,null,null,null,null,null,null,null,null,null,null,null,null,null,null,""]
[null,null,null,null,null,null,null,null,null,null,null,null,null,null,null,""]
[null,null,null,null,null,null,null,null,null,null,null,null,null,null,null,""]
[null,null,null,null,null,null,null,null,null,null,null,null,null,null,null,""]
[null,null,null,null,null,null,null,null,null,null,null,null,null,null,null,""]
[null,null,null,null,null,null,null,null,null,null,null,null,null,null,null,""]
[null,null,null,null,null,null,null,null,null,null,null,null,null,null,null,""]
[null,null,null,null,null,null,null,null,null,null,null,null,null,null,null,""]
[null,null,null,null,null,null,null,null,null,null,null,null,null,null,null,""]
[null,null,null,null,null,null,null,null,null,null,null,null,null,null,null,""]
[null,null,null,null,null,null,null,null,null,null,null,null,null,null,null,""]
[null,null,null,null,null,null,null,null,null,null,null,null,null,null,null,""]
[null,null,null,null,null,null,null,null,null,null,null,null,null,null,null,""]
[null,null,null,null,null,null,null,null,null,null,null,null,null,null,null,""]
[null,null,null,null,null,null,null,null,null,null,null,null,null,null,null,""]
[null,null,null,null,null,null,null,null,null,null,null,null,null,null,null,""]
[null,null,null,null,null,null,null,null,null,null,null,null,null,null,null,""]
[null,null,null,null,null,null,null,null,null,null,null,null,null,null,null,""]
[null,null,null,null,null,null,null,null,null,null,null,null,null,null,null,""]
[null,null,null,null,null,null,null,null,null,null,null,null,null,null,null,""]
[null,null,null,null,null,null,null,null,null,null,null,null,null,null,null,""]
[null,null,null,null,null,null,null,null,null,null,null,null,null,null,null,""]
[null,null,null,null,null,null,null,null,null,null,null,null,null,null,null,""]
[null,null,null,null,null,null,null,null,null,null,null,null,null,null,null,""]
[null,null,null,null,null,null,null,null,null,null,null,null,null,null,null,""]
[null,null,null,null,null,null,null,null,null,null,null,null,null,null,null,""]
[null,null,null,null,null,null,null,null,null,null,null,null,null,null,null,""]
[null,null,null,null,null,null,null,null,null,null,null,null,null,null,null,""]
[null,null,null,null,null,null,null,null,null,null,null,null,null,null,null,""]
[null,null,null,null,null,null,null,null,null,null,null,null,null,null,null,""]
[null,null,null,null,null,null,null,null,null,null,null,null,null,null,null,""]
[null,null,null,null,null,null,null,null,null,null,null,null,null,null,null,""]
[null,null,null,null,null,null,null,null,null,null,null,null,null,null,null,""]
[null,null,null,null,null,null,null,null,null,null,null,null,null,null,null,""]
[null,null,null,null,null,null,null,null,null,null,null,null,null,null,null,""]
[null,null,null,null,null,null,null,null,null,null,null,null,null,null,null,""]
[null,null,null,null,null,null,null,null,null,null,null,null,null,null,null,""]
[null,null,null,null,null,null,null,null,null,null,null,null,null,null,null,""]
[null,null,null,null,null,null,null,null,null,null,null,null,null,null,null,""]
[null,null,null,null,null,null,null,null,null,null,null,null,null,null,null,""]
[null,null,null,null,null,null,null,null,null,null,null,null,null,null,null,""]
[null,null,null,null,null,null,null,null,null,null,null,null,null,null,null,""]
[null,null,null,null,null,null,null,null,null,null,null,null,null,null,null,""]
[null,null,null,null,null,null,null,null,null,null,null,null,null,null,null,""]
[null,null,null,null,null,null,null,null,null,null,null,null,null,null,null,""]
[null,null,null,null,null,null,null,null,null,null,null,null,null,null,null,""]
[null,null,null,null,null,null,null,null,null,null,null,null,null,null,null,""]
[null,null,null,null,null,null,null,null,null,null,null,null,null,null,null,""]
[null,null,null,null,null,null,null,null,null,null,null,null,null,null,null,""]
[null,null,null,null,null,null,null,null,null,null,null,null,null,null,null,""]
[null,null,null,null,null,null,null,null,null,null,null,null,null,null,null,""]
[null,null,null,null,null,null,null,null,null,null,null,null,null,null,null,""]
[null,null,null,null,null,null,null,null,null,null,null,null,null,null,null,""]
[null,null,null,null,null,null,null,null,null,null,null,null,null,null,null,""]
[null,null,null,null,null,null,null,null,null,null,null,null,null,null,null,""]
[null,null,null,null,null,null,null,null,null,null,null,null,null,null,null,""]
[null,null,null,null,null,null,null,null,null,null,null,null,null,null,null,""]
[null,null,null,null,null,null,null,null,null,null,null,null,null,null,null,""]
[null,null,null,null,null,null,null,null,null,null,null,null,null,null,null,""]
[null,null,null,null,null,null,null,null,null,null,null,null,null,null,null,""]
[null,null,null,null,null,null,null,null,null,null,null,null,null,null,null,{"$f":"IFERROR(IF(G642=$X$3,$W$3,IF(G642=$X$4,$W$4,IF(G642=$X$5,$W$5,IF(G642=$X$6,$W$6,IF(G642=$X$7,$W$7,\"\"))))),0)","v":""}]
[null,null,null,null,null,null,null,null,null,null,null,null,null,null,null,""]
[null,null,null,null,null,null,null,null,null,null,null,null,null,null,null,""]
[null,null,null,null,null,null,null,null,null,null,null,null,null,null,null,""]
[null,null,null,null,null,null,null,null,null,null,null,null,null,null,null,""]
[null,null,null,null,null,null,null,null,null,null,null,null,null,null,null,""]
[null,null,null,null,null,null,null,null,null,null,null,null,null,null,null,""]
[null,null,null,null,null,null,null,null,null,null,null,null,null,null,null,""]
[null,null,null,null,null,null,null,null,null,null,null,null,null,null,null,""]
[null,null,null,null,null,null,null,null,null,null,null,null,null,null,null,""]
[null,null,null,null,null,null,null,null,null,null,null,null,null,null,null,""]
[null,null,null,null,null,null,null,null,null,null,null,null,null,null,null,""]
[null,null,null,null,null,null,null,null,null,null,null,null,null,null,null,""]
[null,null,null,null,null,null,null,null,null,null,null,null,null,null,null,""]
[null,null,null,null,null,null,null,null,null,null,null,null,null,null,null,""]
[null,null,null,null,null,null,null,null,null,null,null,null,null,null,null,""]
[null,null,null,null,null,null,null,null,null,null,null,null,null,null,null,""]
[null,null,null,null,null,null,null,null,null,null,null,null,null,null,null,""]
[null,null,null,null,null,null,null,null,null,null,null,null,null,null,null,""]
[null,null,null,null,null,null,null,null,null,null,null,null,null,null,null,""]
[null,null,null,null,null,null,null,null,null,null,null,null,null,null,null,""]
[null,null,null,null,null,null,null,null,null,null,null,null,null,null,null,""]
[null,null,null,null,null,null,null,null,null,null,null,null,null,null,null,""]
[null,null,null,null,null,null,null,null,null,null,null,null,null,null,null,""]
[null,null,null,null,null,null,null,null,null,null,null,null,null,null,null,""]
[null,null,null,null,null,null,null,null,null,null,null,null,null,null,null,""]
[null,null,null,null,null,null,null,null,null,null,null,null,null,null,null,""]
[null,null,null,null,null,null,null,null,null,null,null,null,null,null,null,""]
[null,null,null,null,null,null,null,null,null,null,null,null,null,null,null,""]
[null,null,null,null,null,null,null,null,null,null,null,null,null,null,null,""]
[null,null,null,null,null,null,null,null,null,null,null,null,null,null,null,""]
[null,null,null,null,null,null,null,null,null,null,null,null,null,null,null,""]
[null,null,null,null,null,null,null,null,null,null,null,null,null,null,null,""]
[null,null,null,null,null,null,null,null,null,null,null,null,null,null,null,""]
[null,null,null,null,null,null,null,null,null,null,null,null,null,null,null,""]
[null,null,null,null,null,null,null,null,null,null,null,null,null,null,null,""]
[null,null,null,null,null,null,null,null,null,null,null,null,null,null,null,""]
[null,null,null,null,null,null,null,null,null,null,null,null,null,null,null,""]
[null,null,null,null,null,null,null,null,null,null,null,null,null,null,null,""]
[null,null,null,null,null,null,null,null,null,null,null,null,null,null,null,""]
[null,null,null,null,null,null,null,null,null,null,null,null,null,null,null,""]
[null,null,null,null,null,null,null,null,null,null,null,null,null,null,null,""]
[null,null,null,null,null,null,null,null,null,null,null,null,null,null,null,""]
[null,null,null,null,null,null,null,null,null,null,null,null,null,null,null,""]
[null,null,null,null,null,null,null,null,null,null,null,null,null,null,null,""]
[null,null,null,null,null,null,null,null,null,null,null,null,null,null,null,""]
[null,null,null,null,null,null,null,null,null,null,null,null,null,null,null,""]
[null,null,null,null,null,null,null,null,null,null,null,null,null,null,null,""]
[null,null,null,null,null,null,null,null,null,null,null,null,null,null,null,""]
[null,null,null,null,null,null,null,null,null,null,null,null,null,null,null,""]
[null,null,null,null,null,null,null,null,null,null,null,null,null,null,null,""]
[null,null,null,null,null,null,null,null,null,null,null,null,null,null,null,""]
[null,null,null,null,null,null,null,null,null,null,null,null,null,null,null,""]
[null,null,null,null,null,null,null,null,null,null,null,null,null,null,null,""]
[null,null,null,null,null,null,null,null,null,null,null,null,null,null,null,""]
[null,null,null,null,null,null,null,null,null,null,null,null,null,null,null,""]
[null,null,null,null,null,null,null,null,null,null,null,null,null,null,null,""]
[null,null,null,null,null,null,null,null,null,null,null,null,null,null,null,""]
[null,null,null,null,null,null,null,null,null,null,null,null,null,null,null,""]
[null,null,null,null,null,null,null,null,null,null,null,null,null,null,null,""]
[null,null,null,null,null,null,null,null,null,null,null,null,null,null,null,""]
[null,null,null,null,null,null,null,null,null,null,null,null,null,null,null,""]
[null,null,null,null,null,null,null,null,null,null,null,null,null,null,null,""]
[null,null,null,null,null,null,null,null,null,null,null,null,null,null,null,""]
[null,null,null,null,null,null,null,null,null,null,null,null,null,null,null,{"$f":"IFERROR(IF(G706=$X$3,$W$3,IF(G706=$X$4,$W$4,IF(G706=$X$5,$W$5,IF(G706=$X$6,$W$6,IF(G706=$X$7,$W$7,\"\"))))),0)","v":""}]
[null,null,null,null,null,null,null,null,null,null,null,null,null,null,null,""]
[null,null,null,null,null,null,null,null,null,null,null,null,null,null,null,""]
[null,null,null,null,null,null,null,null,null,null,null,null,null,null,null,""]
[null,null,null,null,null,null,null,null,null,null,null,null,null,null,null,""]
[null,null,null,null,null,null,null,null,null,null,null,null,null,null,null,""]
[null,null,null,null,null,null,null,null,null,null,null,null,null,null,null,""]
[null,null,null,null,null,null,null,null,null,null,null,null,null,null,null,""]
[null,null,null,null,null,null,null,null,null,null,null,null,null,null,null,""]
[null,null,null,null,null,null,null,null,null,null,null,null,null,null,null,""]
[null,null,null,null,null,null,null,null,null,null,null,null,null,null,null,""]
[null,null,null,null,null,null,null,null,null,null,null,null,null,null,null,""]
[null,null,null,null,null,null,null,null,null,null,null,null,null,null,null,""]
[null,null,null,null,null,null,null,null,null,null,null,null,null,null,null,""]
[null,null,null,null,null,null,null,null,null,null,null,null,null,null,null,""]
[null,null,null,null,null,null,null,null,null,null,null,null,null,null,null,""]
[null,null,null,null,null,null,null,null,null,null,null,null,null,null,null,""]
[null,null,null,null,null,null,null,null,null,null,null,null,null,null,null,""]
[null,null,null,null,null,null,null,null,null,null,null,null,null,null,null,""]
[null,null,null,null,null,null,null,null,null,null,null,null,null,null,null,""]
[null,null,null,null,null,null,null,null,null,null,null,null,null,null,null,""]
[null,null,null,null,null,null,null,null,null,null,null,null,null,null,null,""]
[null,null,null,null,null,null,null,null,null,null,null,null,null,null,null,""]
[null,null,null,null,null,null,null,null,null,null,null,null,null,null,null,""]
[null,null,null,null,null,null,null,null,null,null,null,null,null,null,null,""]
[null,null,null,null,null,null,null,null,null,null,null,null,null,null,null,""]
[null,null,null,null,null,null,null,null,null,null,null,null,null,null,null,""]
[null,null,null,null,null,null,null,null,null,null,null,null,null,null,null,""]
[null,null,null,null,null,null,null,null,null,null,null,null,null,null,null,""]
[null,null,null,null,null,null,null,null,null,null,null,null,null,null,null,""]
[null,null,null,null,null,null,null,null,null,null,null,null,null,null,null,""]
[null,null,null,null,null,null,null,null,null,null,null,null,null,null,null,""]
[null,null,null,null,null,null,null,null,null,null,null,null,null,null,null,""]
[null,null,null,null,null,null,null,null,null,null,null,null,null,null,null,""]
[null,null,null,null,null,null,null,null,null,null,null,null,null,null,null,""]
[null,null,null,null,null,null,null,null,null,null,null,null,null,null,null,""]
[null,null,null,null,null,null,null,null,null,null,null,null,null,null,null,""]
[null,null,null,null,null,null,null,null,null,null,null,null,null,null,null,""]
[null,null,null,null,null,null,null,null,null,null,null,null,null,null,null,""]
[null,null,null,null,null,null,null,null,null,null,null,null,null,null,null,""]
[null,null,null,null,null,null,null,null,null,null,null,null,null,null,null,""]
[null,null,null,null,null,null,null,null,null,null,null,null,null,null,null,""]
[null,null,null,null,null,null,null,null,null,null,null,null,null,null,null,""]
[null,null,null,null,null,null,null,null,null,null,null,null,null,null,null,""]
[null,null,null,null,null,null,null,null,null,null,null,null,null,null,null,""]
[null,null,null,null,null,null,null,null,null,null,null,null,null,null,null,""]
[null,null,null,null,null,null,null,null,null,null,null,null,null,null,null,""]
[null,null,null,null,null,null,null,null,null,null,null,null,null,null,null,""]
[null,null,null,null,null,null,null,null,null,null,null,null,null,null,null,""]
[null,null,null,null,null,null,null,null,null,null,null,null,null,null,null,""]
[null,null,null,null,null,null,null,null,null,null,null,null,null,null,null,""]
[null,null,null,null,null,null,null,null,null,null,null,null,null,null,null,""]
[null,null,null,null,null,null,null,null,null,null,null,null,null,null,null,""]
[null,null,null,null,null,null,null,null,null,null,null,null,null,null,null,""]
[null,null,null,null,null,null,null,null,null,null,null,null,null,null,null,""]
[null,null,null,null,null,null,null,null,null,null,null,null,null,null,null,""]
[null,null,null,null,null,null,null,null,null,null,null,null,null,null,null,""]
[null,null,null,null,null,null,null,null,null,null,null,null,null,null,null,""]
[null,null,null,null,null,null,null,null,null,null,null,null,null,null,null,""]
[null,null,null,null,null,null,null,null,null,null,null,null,null,null,null,""]
[null,null,null,null,null,null,null,null,null,null,null,null,null,null,null,""]
[null,null,null,null,null,null,null,null,null,null,null,null,null,null,null,""]
[null,null,null,null,null,null,null,null,null,null,null,null,null,null,null,""]
[null,null,null,null,null,null,null,null,null,null,null,null,null,null,null,""]
[null,null,null,null,null,null,null,null,null,null,null,null,null,null,null,{"$f":"IFERROR(IF(G770=$X$3,$W$3,IF(G770=$X$4,$W$4,IF(G770=$X$5,$W$5,IF(G770=$X$6,$W$6,IF(G770=$X$7,$W$7,\"\"))))),0)","v":""}]
[null,null,null,null,null,null,null,null,null,null,null,null,null,null,null,""]
[null,null,null,null,null,null,null,null,null,null,null,null,null,null,null,""]
[null,null,null,null,null,null,null,null,null,null,null,null,null,null,null,""]
[null,null,null,null,null,null,null,null,null,null,null,null,null,null,null,""]
[null,null,null,null,null,null,null,null,null,null,null,null,null,null,null,""]
[null,null,null,null,null,null,null,null,null,null,null,null,null,null,null,""]
[null,null,null,null,null,null,null,null,null,null,null,null,null,null,null,""]
[null,null,null,null,null,null,null,null,null,null,null,null,null,null,null,""]
[null,null,null,null,null,null,null,null,null,null,null,null,null,null,null,""]
[null,null,null,null,null,null,null,null,null,null,null,null,null,null,null,""]
[null,null,null,null,null,null,null,null,null,null,null,null,null,null,null,""]
[null,null,null,null,null,null,null,null,null,null,null,null,null,null,null,""]
[null,null,null,null,null,null,null,null,null,null,null,null,null,null,null,""]
[null,null,null,null,null,null,null,null,null,null,null,null,null,null,null,""]
[null,null,null,null,null,null,null,null,null,null,null,null,null,null,null,""]
[null,null,null,null,null,null,null,null,null,null,null,null,null,null,null,""]
[null,null,null,null,null,null,null,null,null,null,null,null,null,null,null,""]
[null,null,null,null,null,null,null,null,null,null,null,null,null,null,null,""]
[null,null,null,null,null,null,null,null,null,null,null,null,null,null,null,""]
[null,null,null,null,null,null,null,null,null,null,null,null,null,null,null,""]
[null,null,null,null,null,null,null,null,null,null,null,null,null,null,null,""]
[null,null,null,null,null,null,null,null,null,null,null,null,null,null,null,""]
[null,null,null,null,null,null,null,null,null,null,null,null,null,null,null,""]
[null,null,null,null,null,null,null,null,null,null,null,null,null,null,null,""]
[null,null,null,null,null,null,null,null,null,null,null,null,null,null,null,""]
[null,null,null,null,null,null,null,null,null,null,null,null,null,null,null,""]
[null,null,null,null,null,null,null,null,null,null,null,null,null,null,null,""]
[null,null,null,null,null,null,null,null,null,null,null,null,null,null,null,""]
[null,null,null,null,null,null,null,null,null,null,null,null,null,null,null,""]
[null,null,null,null,null,null,null,null,null,null,null,null,null,null,null,""]
[null,null,null,null,null,null,null,null,null,null,null,null,null,null,null,""]
[null,null,null,null,null,null,null,null,null,null,null,null,null,null,null,""]
[null,null,null,null,null,null,null,null,null,null,null,null,null,null,null,""]
[null,null,null,null,null,null,null,null,null,null,null,null,null,null,null,""]
[null,null,null,null,null,null,null,null,null,null,null,null,null,null,null,""]
[null,null,null,null,null,null,null,null,null,null,null,null,null,null,null,""]
[null,null,null,null,null,null,null,null,null,null,null,null,null,null,null,""]
[null,null,null,null,null,null,null,null,null,null,null,null,null,null,null,""]
[null,null,null,null,null,null,null,null,null,null,null,null,null,null,null,""]
[null,null,null,null,null,null,null,null,null,null,null,null,null,null,null,""]
[null,null,null,null,null,null,null,null,null,null,null,null,null,null,null,""]
[null,null,null,null,null,null,null,null,null,null,null,null,null,null,null,""]
[null,null,null,null,null,null,null,null,null,null,null,null,null,null,null,""]
[null,null,null,null,null,null,null,null,null,null,null,null,null,null,null,""]
[null,null,null,null,null,null,null,null,null,null,null,null,null,null,null,""]
[null,null,null,null,null,null,null,null,null,null,null,null,null,null,null,""]
[null,null,null,null,null,null,null,null,null,null,null,null,null,null,null,""]
[null,null,null,null,null,null,null,null,null,null,null,null,null,null,null,""]
[null,null,null,null,null,null,null,null,null,null,null,null,null,null,null,""]
[null,null,null,null,null,null,null,null,null,null,null,null,null,null,null,""]
[null,null,null,null,null,null,null,null,null,null,null,null,null,null,null,""]
[null,null,null,null,null,null,null,null,null,null,null,null,null,null,null,""]
[null,null,null,null,null,null,null,null,null,null,null,null,null,null,null,""]
[null,null,null,null,null,null,null,null,null,null,null,null,null,null,null,""]
[null,null,null,null,null,null,null,null,null,null,null,null,null,null,null,""]
[null,null,null,null,null,null,null,null,null,null,null,null,null,null,null,""]
[null,null,null,null,null,null,null,null,null,null,null,null,null,null,null,""]
[null,null,null,null,null,null,null,null,null,null,null,null,null,null,null,""]
[null,null,null,null,null,null,null,null,null,null,null,null,null,null,null,""]
[null,null,null,null,null,null,null,null,null,null,null,null,null,null,null,""]
[null,null,null,null,null,null,null,null,null,null,null,null,null,null,null,""]
[null,null,null,null,null,null,null,null,null,null,null,null,null,null,null,""]
[null,null,null,null,null,null,null,null,null,null,null,null,null,null,null,""]
[null,null,null,null,null,null,null,null,null,null,null,null,null,null,null,{"$f":"IFERROR(IF(G834=$X$3,$W$3,IF(G834=$X$4,$W$4,IF(G834=$X$5,$W$5,IF(G834=$X$6,$W$6,IF(G834=$X$7,$W$7,\"\"))))),0)","v":""}]
[null,null,null,null,null,null,null,null,null,null,null,null,null,null,null,""]
[null,null,null,null,null,null,null,null,null,null,null,null,null,null,null,""]
[null,null,null,null,null,null,null,null,null,null,null,null,null,null,null,""]
[null,null,null,null,null,null,null,null,null,null,null,null,null,null,null,""]
[null,null,null,null,null,null,null,null,null,null,null,null,null,null,null,""]
[null,null,null,null,null,null,null,null,null,null,null,null,null,null,null,""]
[null,null,null,null,null,null,null,null,null,null,null,null,null,null,null,""]
[null,null,null,null,null,null,null,null,null,null,null,null,null,null,null,""]
[null,null,null,null,null,null,null,null,null,null,null,null,null,null,null,""]
[null,null,null,null,null,null,null,null,null,null,null,null,null,null,null,""]
[null,null,null,null,null,null,null,null,null,null,null,null,null,null,null,""]
[null,null,null,null,null,null,null,null,null,null,null,null,null,null,null,""]
[null,null,null,null,null,null,null,null,null,null,null,null,null,null,null,""]
[null,null,null,null,null,null,null,null,null,null,null,null,null,null,null,""]
[null,null,null,null,null,null,null,null,null,null,null,null,null,null,null,""]
[null,null,null,null,null,null,null,null,null,null,null,null,null,null,null,""]
[null,null,null,null,null,null,null,null,null,null,null,null,null,null,null,""]
[null,null,null,null,null,null,null,null,null,null,null,null,null,null,null,""]
[null,null,null,null,null,null,null,null,null,null,null,null,null,null,null,""]
[null,null,null,null,null,null,null,null,null,null,null,null,null,null,null,""]
[null,null,null,null,null,null,null,null,null,null,null,null,null,null,null,""]
[null,null,null,null,null,null,null,null,null,null,null,null,null,null,null,""]
[null,null,null,null,null,null,null,null,null,null,null,null,null,null,null,""]
[null,null,null,null,null,null,null,null,null,null,null,null,null,null,null,""]
[null,null,null,null,null,null,null,null,null,null,null,null,null,null,null,""]
[null,null,null,null,null,null,null,null,null,null,null,null,null,null,null,""]
[null,null,null,null,null,null,null,null,null,null,null,null,null,null,null,""]
[null,null,null,null,null,null,null,null,null,null,null,null,null,null,null,""]
[null,null,null,null,null,null,null,null,null,null,null,null,null,null,null,""]
[null,null,null,null,null,null,null,null,null,null,null,null,null,null,null,""]
[null,null,null,null,null,null,null,null,null,null,null,null,null,null,null,""]
[null,null,null,null,null,null,null,null,null,null,null,null,null,null,null,""]
[null,null,null,null,null,null,null,null,null,null,null,null,null,null,null,""]
[null,null,null,null,null,null,null,null,null,null,null,null,null,null,null,""]
[null,null,null,null,null,null,null,null,null,null,null,null,null,null,null,""]
[null,null,null,null,null,null,null,null,null,null,null,null,null,null,null,""]
[null,null,null,null,null,null,null,null,null,null,null,null,null,null,null,""]
[null,null,null,null,null,null,null,null,null,null,null,null,null,null,null,""]
[null,null,null,null,null,null,null,null,null,null,null,null,null,null,null,""]
[null,null,null,null,null,null,null,null,null,null,null,null,null,null,null,""]
[null,null,null,null,null,null,null,null,null,null,null,null,null,null,null,""]
[null,null,null,null,null,null,null,null,null,null,null,null,null,null,null,""]
[null,null,null,null,null,null,null,null,null,null,null,null,null,null,null,""]
[null,null,null,null,null,null,null,null,null,null,null,null,null,null,null,""]
[null,null,null,null,null,null,null,null,null,null,null,null,null,null,null,""]
[null,null,null,null,null,null,null,null,null,null,null,null,null,null,null,""]
[null,null,null,null,null,null,null,null,null,null,null,null,null,null,null,""]
[null,null,null,null,null,null,null,null,null,null,null,null,null,null,null,""]
[null,null,null,null,null,null,null,null,null,null,null,null,null,null,null,""]
[null,null,null,null,null,null,null,null,null,null,null,null,null,null,null,""]
[null,null,null,null,null,null,null,null,null,null,null,null,null,null,null,""]
[null,null,null,null,null,null,null,null,null,null,null,null,null,null,null,""]
[null,null,null,null,null,null,null,null,null,null,null,null,null,null,null,""]
[null,null,null,null,null,null,null,null,null,null,null,null,null,null,null,""]
[null,null,null,null,null,null,null,null,null,null,null,null,null,null,null,""]
[null,null,null,null,null,null,null,null,null,null,null,null,null,null,null,""]
[null,null,null,null,null,null,null,null,null,null,null,null,null,null,null,""]
[null,null,null,null,null,null,null,null,null,null,null,null,null,null,null,""]
[null,null,null,null,null,null,null,null,null,null,null,null,null,null,null,""]
[null,null,null,null,null,null,null,null,null,null,null,null,null,null,null,""]
[null,null,null,null,null,null,null,null,null,null,null,null,null,null,null,""]
[null,null,null,null,null,null,null,null,null,null,null,null,null,null,null,""]
[null,null,null,null,null,null,null,null,null,null,null,null,null,null,null,""]
[null,null,null,null,null,null,null,null,null,null,null,null,null,null,null,{"$f":"IFERROR(IF(G898=$X$3,$W$3,IF(G898=$X$4,$W$4,IF(G898=$X$5,$W$5,IF(G898=$X$6,$W$6,IF(G898=$X$7,$W$7,\"\"))))),0)","v":""}]
[null,null,null,null,null,null,null,null,null,null,null,null,null,null,null,""]
[null,null,null,null,null,null,null,null,null,null,null,null,null,null,null,""]
[null,null,null,null,null,null,null,null,null,null,null,null,null,null,null,""]
[null,null,null,null,null,null,null,null,null,null,null,null,null,null,null,""]
[null,null,null,null,null,null,null,null,null,null,null,null,null,null,null,""]
[null,null,null,null,null,null,null,null,null,null,null,null,null,null,null,""]
[null,null,null,null,null,null,null,null,null,null,null,null,null,null,null,""]
[null,null,null,null,null,null,null,null,null,null,null,null,null,null,null,""]
[null,null,null,null,null,null,null,null,null,null,null,null,null,null,null,""]
[null,null,null,null,null,null,null,null,null,null,null,null,null,null,null,""]
[null,null,null,null,null,null,null,null,null,null,null,null,null,null,null,""]
[null,null,null,null,null,null,null,null,null,null,null,null,null,null,null,""]
[null,null,null,null,null,null,null,null,null,null,null,null,null,null,null,""]
[null,null,null,null,null,null,null,null,null,null,null,null,null,null,null,""]
[null,null,null,null,null,null,null,null,null,null,null,null,null,null,null,""]
[null,null,null,null,null,null,null,null,null,null,null,null,null,null,null,""]
[null,null,null,null,null,null,null,null,null,null,null,null,null,null,null,""]
[null,null,null,null,null,null,null,null,null,null,null,null,null,null,null,""]
[null,null,null,null,null,null,null,null,null,null,null,null,null,null,null,""]
[null,null,null,null,null,null,null,null,null,null,null,null,null,null,null,""]
[null,null,null,null,null,null,null,null,null,null,null,null,null,null,null,""]
[null,null,null,null,null,null,null,null,null,null,null,null,null,null,null,""]
[null,null,null,null,null,null,null,null,null,null,null,null,null,null,null,""]
[null,null,null,null,null,null,null,null,null,null,null,null,null,null,null,""]
[null,null,null,null,null,null,null,null,null,null,null,null,null,null,null,""]
[null,null,null,null,null,null,null,null,null,null,null,null,null,null,null,""]
[null,null,null,null,null,null,null,null,null,null,null,null,null,null,null,""]
[null,null,null,null,null,null,null,null,null,null,null,null,null,null,null,""]
[null,null,null,null,null,null,null,null,null,null,null,null,null,null,null,""]
[null,null,null,null,null,null,null,null,null,null,null,null,null,null,null,""]
[null,null,null,null,null,null,null,null,null,null,null,null,null,null,null,""]
[null,null,null,null,null,null,null,null,null,null,null,null,null,null,null,""]
[null,null,null,null,null,null,null,null,null,null,null,null,null,null,null,""]
[null,null,null,null,null,null,null,null,null,null,null,null,null,null,null,""]
[null,null,null,null,null,null,null,null,null,null,null,null,null,null,null,""]
[null,null,null,null,null,null,null,null,null,null,null,null,null,null,null,""]
[null,null,null,null,null,null,null,null,null,null,null,null,null,null,null,""]
[null,null,null,null,null,null,null,null,null,null,null,null,null,null,null,""]
[null,null,null,null,null,null,null,null,null,null,null,null,null,null,null,""]
[null,null,null,null,null,null,null,null,null,null,null,null,null,null,null,""]
[null,null,null,null,null,null,null,null,null,null,null,null,null,null,null,""]
[null,null,null,null,null,null,null,null,null,null,null,null,null,null,null,""]
[null,null,null,null,null,null,null,null,null,null,null,null,null,null,null,""]
[null,null,null,null,null,null,null,null,null,null,null,null,null,null,null,""]
[null,null,null,null,null,null,null,null,null,null,null,null,null,null,null,""]
[null,null,null,null,null,null,null,null,null,null,null,null,null,null,null,""]
[null,null,null,null,null,null,null,null,null,null,null,null,null,null,null,""]
[null,null,null,null,null,null,null,null,null,null,null,null,null,null,null,""]
[null,null,null,null,null,null,null,null,null,null,null,null,null,null,null,""]
[null,null,null,null,null,null,null,null,null,null,null,null,null,null,null,""]
[null,null,null,null,null,null,null,null,null,null,null,null,null,null,null,""]
[null,null,null,null,null,null,null,null,null,null,null,null,null,null,null,""]
[null,null,null,null,null,null,null,null,null,null,null,null,null,null,null,""]
[null,null,null,null,null,null,null,null,null,null,null,null,null,null,null,""]
[null,null,null,null,null,null,null,null,null,null,null,null,null,null,null,""]
[null,null,null,null,null,null,null,null,null,null,null,null,null,null,null,""]
[null,null,null,null,null,null,null,null,null,null,null,null,null,null,null,""]
[null,null,null,null,null,null,null,null,null,null,null,null,null,null,null,""]
[null,null,null,null,null,null,null,null,null,null,null,null,null,null,null,""]
[null,null,null,null,null,null,null,null,null,null,null,null,null,null,null,""]
[null,null,null,null,null,null,null,null,null,null,null,null,null,null,null,""]
[null,null,null,null,null,null,null,null,null,null,null,null,null,null,null,""]
[null,null,null,null,null,null,null,null,null,null,null,null,null,null,null,""]
[null,null,null,null,null,null,null,null,null,null,null,null,null,null,null,{"$f":"IFERROR(IF(G962=$X$3,$W$3,IF(G962=$X$4,$W$4,IF(G962=$X$5,$W$5,IF(G962=$X$6,$W$6,IF(G962=$X$7,$W$7,\"\"))))),0)","v":""}]
[null,null,null,null,null,null,null,null,null,null,null,null,null,null,null,""]
[null,null,null,null,null,null,null,null,null,null,null,null,null,null,null,""]
[null,null,null,null,null,null,null,null,null,null,null,null,null,null,null,""]
[null,null,null,null,null,null,null,null,null,null,null,null,null,null,null,""]
[null,null,null,null,null,null,null,null,null,null,null,null,null,null,null,""]
[null,null,null,null,null,null,null,null,null,null,null,null,null,null,null,""]
[null,null,null,null,null,null,null,null,null,null,null,null,null,null,null,""]
[null,null,null,null,null,null,null,null,null,null,null,null,null,null,null,""]
[null,null,null,null,null,null,null,null,null,null,null,null,null,null,null,""]
[null,null,null,null,null,null,null,null,null,null,null,null,null,null,null,""]
[null,null,null,null,null,null,null,null,null,null,null,null,null,null,null,""]
[null,null,null,null,null,null,null,null,null,null,null,null,null,null,null,""]
[null,null,null,null,null,null,null,null,null,null,null,null,null,null,null,""]
[null,null,null,null,null,null,null,null,null,null,null,null,null,null,null,""]
[null,null,null,null,null,null,null,null,null,null,null,null,null,null,null,""]
[null,null,null,null,null,null,null,null,null,null,null,null,null,null,null,""]
[null,null,null,null,null,null,null,null,null,null,null,null,null,null,null,""]
[null,null,null,null,null,null,null,null,null,null,null,null,null,null,null,""]
[null,null,null,null,null,null,null,null,null,null,null,null,null,null,null,""]
[null,null,null,null,null,null,null,null,null,null,null,null,null,null,null,""]
[null,null,null,null,null,null,null,null,null,null,null,null,null,null,null,""]
[null,null,null,null,null,null,null,null,null,null,null,null,null,null,null,""]
[null,null,null,null,null,null,null,null,null,null,null,null,null,null,null,""]
[null,null,null,null,null,null,null,null,null,null,null,null,null,null,null,""]
[null,null,null,null,null,null,null,null,null,null,null,null,null,null,null,""]
[null,null,null,null,null,null,null,null,null,null,null,null,null,null,null,""]
[null,null,null,null,null,null,null,null,null,null,null,null,null,null,null,""]
[null,null,null,null,null,null,null,null,null,null,null,null,null,null,null,""]
[null,null,null,null,null,null,null,null,null,null,null,null,null,null,null,""]
[null,null,null,null,null,null,null,null,null,null,null,null,null,null,null,""]
[null,null,null,null,null,null,null,null,null,null,null,null,null,null,null,""]
[null,null,null,null,null,null,null,null,null,null,null,null,null,null,null,""]
[null,null,null,null,null,null,null,null,null,null,null,null,null,null,null,""]
[null,null,null,null,null,null,null,null,null,null,null,null,null,null,null,""]
[null,null,null,null,null,null,null,null,null,null,null,null,null,null,null,""]
[null,null,null,null,null,null,null,null,null,null,null,null,null,null,null,""]
[null,null,null,null,null,null,null,null,null,null,null,null,null,null,null,""]
[null,null,null,null,null,null,null,null,null,null,null,null,null,null,null,""]
[null,null,null,null,null,null,null,null,null,null,null,null,null,null,null,""]
[null,null,null,null,null,null,null,null,null,null,null,null,null,null,null,""]
[null,null,null,null,null,null,null,null,null,null,null,null,null,null,null,""]
[null,null,null,null,null,null,null,null,null,null,null,null,null,null,null,""]
[null,null,null,null,null,null,null,null,null,null,null,null,null,null,null,""]
[null,null,null,null,null,null,null,null,null,null,null,null,null,null,null,""]
[null,null,null,null,null,null,null,null,null,null,null,null,null,null,null,""]
[null,null,null,null,null,null,null,null,null,null,null,null,null,null,null,""]
[null,null,null,null,null,null,null,null,null,null,null,null,null,null,null,""]
[null,null,null,null,null,null,null,null,null,null,null,null,null,null,null,""]
[null,null,null,null,null,null,null,null,null,null,null,null,null,null,null,""]
[null,null,null,null,null,null,null,null,null,null,null,null,null,null,null,""]
[null,null,null,null,null,null,null,null,null,null,null,null,null,null,null,""]
[null,null,null,null,null,null,null,null,null,null,null,null,null,null,null,""]
[null,null,null,null,null,null,null,null,null,null,null,null,null,null,null,""]
[null,null,null,null,null,null,null,null,null,null,null,null,null,null,null,""]
[null,null,null,null,null,null,null,null,null,null,null,null,null,null,null,""]
[null,null,null,null,null,null,null,null,null,null,null,null,null,null,null,""]
[null,null,null,null,null,null,null,null,null,null,null,null,null,null,null,""]
[null,null,null,null,null,null,null,null,null,null,null,null,null,null,null,""]
[null,null,null,null,null,null,null,null,null,null,null,null,null,null,null,""]
[null,null,null,null,null,null,null,null,null,null,null,null,null,null,null,""]
[null,null,null,null,null,null,null,null,null,null,null,null,null,null,null,""]
[null,null,null,null,null,null,null,null,null,null,null,null,null,null,null,""]
[null,null,null,null,null,null,null,null,null,null,null,null,null,null,null,""]
[null,null,null,null,null,null,null,null,null,null,null,null,null,null,null,{"$f":"IFERROR(IF(G1026=$X$3,$W$3,IF(G1026=$X$4,$W$4,IF(G1026=$X$5,$W$5,IF(G1026=$X$6,$W$6,IF(G1026=$X$7,$W$7,\"\"))))),0)","v":""}]
[null,null,null,null,null,null,null,null,null,null,null,null,null,null,null,""]
[null,null,null,null,null,null,null,null,null,null,null,null,null,null,null,""]
[null,null,null,null,null,null,null,null,null,null,null,null,null,null,null,""]
[null,null,null,null,null,null,null,null,null,null,null,null,null,null,null,""]
[null,null,null,null,null,null,null,null,null,null,null,null,null,null,null,""]
[null,null,null,null,null,null,null,null,null,null,null,null,null,null,null,""]
[null,null,null,null,null,null,null,null,null,null,null,null,null,null,null,""]
[null,null,null,null,null,null,null,null,null,null,null,null,null,null,null,""]
[null,null,null,null,null,null,null,null,null,null,null,null,null,null,null,""]
[null,null,null,null,null,null,null,null,null,null,null,null,null,null,null,""]
[null,null,null,null,null,null,null,null,null,null,null,null,null,null,null,""]
[null,null,null,null,null,null,null,null,null,null,null,null,null,null,null,""]
[null,null,null,null,null,null,null,null,null,null,null,null,null,null,null,""]
[null,null,null,null,null,null,null,null,null,null,null,null,null,null,null,""]
[null,null,null,null,null,null,null,null,null,null,null,null,null,null,null,""]
[null,null,null,null,null,null,null,null,null,null,null,null,null,null,null,""]
[null,null,null,null,null,null,null,null,null,null,null,null,null,null,null,""]
[null,null,null,null,null,null,null,null,null,null,null,null,null,null,null,""]
[null,null,null,null,null,null,null,null,null,null,null,null,null,null,null,""]
[null,null,null,null,null,null,null,null,null,null,null,null,null,null,null,""]
[null,null,null,null,null,null,null,null,null,null,null,null,null,null,null,""]
[null,null,null,null,null,null,null,null,null,null,null,null,null,null,null,""]
[null,null,null,null,null,null,null,null,null,null,null,null,null,null,null,""]
[null,null,null,null,null,null,null,null,null,null,null,null,null,null,null,""]
[null,null,null,null,null,null,null,null,null,null,null,null,null,null,null,""]
[null,null,null,null,null,null,null,null,null,null,null,null,null,null,null,""]
[null,null,null,null,null,null,null,null,null,null,null,null,null,null,null,""]
[null,null,null,null,null,null,null,null,null,null,null,null,null,null,null,""]
[null,null,null,null,null,null,null,null,null,null,null,null,null,null,null,""]
[null,null,null,null,null,null,null,null,null,null,null,null,null,null,null,""]
[null,null,null,null,null,null,null,null,null,null,null,null,null,null,null,""]
[null,null,null,null,null,null,null,null,null,null,null,null,null,null,null,""]
[null,null,null,null,null,null,null,null,null,null,null,null,null,null,null,""]
[null,null,null,null,null,null,null,null,null,null,null,null,null,null,null,""]
[null,null,null,null,null,null,null,null,null,null,null,null,null,null,null,""]
[null,null,null,null,null,null,null,null,null,null,null,null,null,null,null,""]
[null,null,null,null,null,null,null,null,null,null,null,null,null,null,null,""]
[null,null,null,null,null,null,null,null,null,null,null,null,null,null,null,""]
[null,null,null,null,null,null,null,null,null,null,null,null,null,null,null,""]
[null,null,null,null,null,null,null,null,null,null,null,null,null,null,null,""]
[null,null,null,null,null,null,null,null,null,null,null,null,null,null,null,""]
[null,null,null,null,null,null,null,null,null,null,null,null,null,null,null,""]
[null,null,null,null,null,null,null,null,null,null,null,null,null,null,null,""]
[null,null,null,null,null,null,null,null,null,null,null,null,null,null,null,""]
[null,null,null,null,null,null,null,null,null,null,null,null,null,null,null,""]
[null,null,null,null,null,null,null,null,null,null,null,null,null,null,null,""]
[null,null,null,null,null,null,null,null,null,null,null,null,null,null,null,""]
[null,null,null,null,null,null,null,null,null,null,null,null,null,null,null,""]
[null,null,null,null,null,null,null,null,null,null,null,null,null,null,null,""]
[null,null,null,null,null,null,null,null,null,null,null,null,null,null,null,""]
[null,null,null,null,null,null,null,null,null,null,null,null,null,null,null,""]
[null,null,null,null,null,null,null,null,null,null,null,null,null,null,null,""]
[null,null,null,null,null,null,null,null,null,null,null,null,null,null,null,""]
[null,null,null,null,null,null,null,null,null,null,null,null,null,null,null,""]
[null,null,null,null,null,null,null,null,null,null,null,null,null,null,null,""]
[null,null,null,null,null,null,null,null,null,null,null,null,null,null,null,""]
[null,null,null,null,null,null,null,null,null,null,null,null,null,null,null,""]
[null,null,null,null,null,null,null,null,null,null,null,null,null,null,null,""]
[null,null,null,null,null,null,null,null,null,null,null,null,null,null,null,""]
[null,null,null,null,null,null,null,null,null,null,null,null,null,null,null,""]
[null,null,null,null,null,null,null,null,null,null,null,null,null,null,null,""]
[null,null,null,null,null,null,null,null,null,null,null,null,null,null,null,""]
[null,null,null,null,null,null,null,null,null,null,null,null,null,null,null,""]
[null,null,null,null,null,null,null,null,null,null,null,null,null,null,null,{"$f":"IFERROR(IF(G1090=$X$3,$W$3,IF(G1090=$X$4,$W$4,IF(G1090=$X$5,$W$5,IF(G1090=$X$6,$W$6,IF(G1090=$X$7,$W$7,\"\"))))),0)","v":""}]
[null,null,null,null,null,null,null,null,null,null,null,null,null,null,null,""]
[null,null,null,null,null,null,null,null,null,null,null,null,null,null,null,""]
[null,null,null,null,null,null,null,null,null,null,null,null,null,null,null,""]
[null,null,null,null,null,null,null,null,null,null,null,null,null,null,null,""]
[null,null,null,null,null,null,null,null,null,null,null,null,null,null,null,""]
[null,null,null,null,null,null,null,null,null,null,null,null,null,null,null,""]
[null,null,null,null,null,null,null,null,null,null,null,null,null,null,null,""]
[null,null,null,null,null,null,null,null,null,null,null,null,null,null,null,""]
[null,null,null,null,null,null,null,null,null,null,null,null,null,null,null,""]
[null,null,null,null,null,null,null,null,null,null,null,null,null,null,null,""]
[null,null,null,null,null,null,null,null,null,null,null,null,null,null,null,""]
[null,null,null,null,null,null,null,null,null,null,null,null,null,null,null,""]
[null,null,null,null,null,null,null,null,null,null,null,null,null,null,null,""]
[null,null,null,null,null,null,null,null,null,null,null,null,null,null,null,""]
[null,null,null,null,null,null,null,null,null,null,null,null,null,null,null,""]
[null,null,null,null,null,null,null,null,null,null,null,null,null,null,null,""]
[null,null,null,null,null,null,null,null,null,null,null,null,null,null,null,""]
[null,null,null,null,null,null,null,null,null,null,null,null,null,null,null,""]
[null,null,null,null,null,null,null,null,null,null,null,null,null,null,null,""]
[null,null,null,null,null,null,null,null,null,null,null,null,null,null,null,""]
[null,null,null,null,null,null,null,null,null,null,null,null,null,null,null,""]
[null,null,null,null,null,null,null,null,null,null,null,null,null,null,null,""]
[null,null,null,null,null,null,null,null,null,null,null,null,null,null,null,""]
[null,null,null,null,null,null,null,null,null,null,null,null,null,null,null,""]
[null,null,null,null,null,null,null,null,null,null,null,null,null,null,null,""]
[null,null,null,null,null,null,null,null,null,null,null,null,null,null,null,""]
[null,null,null,null,null,null,null,null,null,null,null,null,null,null,null,""]
[null,null,null,null,null,null,null,null,null,null,null,null,null,null,null,""]
[null,null,null,null,null,null,null,null,null,null,null,null,null,null,null,""]
[null,null,null,null,null,null,null,null,null,null,null,null,null,null,null,""]
[null,null,null,null,null,null,null,null,null,null,null,null,null,null,null,""]
[null,null,null,null,null,null,null,null,null,null,null,null,null,null,null,""]
[null,null,null,null,null,null,null,null,null,null,null,null,null,null,null,""]
[null,null,null,null,null,null,null,null,null,null,null,null,null,null,null,""]
[null,null,null,null,null,null,null,null,null,null,null,null,null,null,null,""]
[null,null,null,null,null,null,null,null,null,null,null,null,null,null,null,""]
[null,null,null,null,null,null,null,null,null,null,null,null,null,null,null,""]
[null,null,null,null,null,null,null,null,null,null,null,null,null,null,null,""]
[null,null,null,null,null,null,null,null,null,null,null,null,null,null,null,""]
[null,null,null,null,null,null,null,null,null,null,null,null,null,null,null,""]
[null,null,null,null,null,null,null,null,null,null,null,null,null,null,null,""]
[null,null,null,null,null,null,null,null,null,null,null,null,null,null,null,""]
[null,null,null,null,null,null,null,null,null,null,null,null,null,null,null,""]
[null,null,null,null,null,null,null,null,null,null,null,null,null,null,null,""]
[null,null,null,null,null,null,null,null,null,null,null,null,null,null,null,""]
[null,null,null,null,null,null,null,null,null,null,null,null,null,null,null,""]
[null,null,null,null,null,null,null,null,null,null,null,null,null,null,null,""]
[null,null,null,null,null,null,null,null,null,null,null,null,null,null,null,""]
[null,null,null,null,null,null,null,null,null,null,null,null,null,null,null,""]
[null,null,null,null,null,null,null,null,null,null,null,null,null,null,null,""]
[null,null,null,null,null,null,null,null,null,null,null,null,null,null,null,""]
[null,null,null,null,null,null,null,null,null,null,null,null,null,null,null,""]
[null,null,null,null,null,null,null,null,null,null,null,null,null,null,null,""]
[null,null,null,null,null,null,null,null,null,null,null,null,null,null,null,""]
[null,null,null,null,null,null,null,null,null,null,null,null,null,null,null,""]
[null,null,null,null,null,null,null,null,null,null,null,null,null,null,null,""]
[null,null,null,null,null,null,null,null,null,null,null,null,null,null,null,""]
[null,null,null,null,null,null,null,null,null,null,null,null,null,null,null,""]
[null,null,null,null,null,null,null,null,null,null,null,null,null,null,null,""]
[null,null,null,null,null,null,null,null,null,null,null,null,null,null,null,""]
[null,null,null,null,null,null,null,null,null,null,null,null,null,null,null,""]
[null,null,null,null,null,null,null,null,null,null,null,null,null,null,null,""]
[null,null,null,null,null,null,null,null,null,null,null,null,null,null,null,""]
[null,null,null,null,null,null,null,null,null,null,null,null,null,null,null,{"$f":"IFERROR(IF(G1154=$X$3,$W$3,IF(G1154=$X$4,$W$4,IF(G1154=$X$5,$W$5,IF(G1154=$X$6,$W$6,IF(G1154=$X$7,$W$7,\"\"))))),0)","v":""}]
[null,null,null,null,null,null,null,null,null,null,null,null,null,null,null,""]
[null,null,null,null,null,null,null,null,null,null,null,null,null,null,null,""]
[null,null,null,null,null,null,null,null,null,null,null,null,null,null,null,""]
[null,null,null,null,null,null,null,null,null,null,null,null,null,null,null,""]
[null,null,null,null,null,null,null,null,null,null,null,null,null,null,null,""]
[null,null,null,null,null,null,null,null,null,null,null,null,null,null,null,""]
[null,null,null,null,null,null,null,null,null,null,null,null,null,null,null,""]
[null,null,null,null,null,null,null,null,null,null,null,null,null,null,null,""]
[null,null,null,null,null,null,null,null,null,null,null,null,null,null,null,""]
[null,null,null,null,null,null,null,null,null,null,null,null,null,null,null,""]
[null,null,null,null,null,null,null,null,null,null,null,null,null,null,null,""]
[null,null,null,null,null,null,null,null,null,null,null,null,null,null,null,""]
[null,null,null,null,null,null,null,null,null,null,null,null,null,null,null,""]
[null,null,null,null,null,null,null,null,null,null,null,null,null,null,null,""]
[null,null,null,null,null,null,null,null,null,null,null,null,null,null,null,""]
[null,null,null,null,null,null,null,null,null,null,null,null,null,null,null,""]
[null,null,null,null,null,null,null,null,null,null,null,null,null,null,null,""]
[null,null,null,null,null,null,null,null,null,null,null,null,null,null,null,""]
[null,null,null,null,null,null,null,null,null,null,null,null,null,null,null,""]
[null,null,null,null,null,null,null,null,null,null,null,null,null,null,null,""]
[null,null,null,null,null,null,null,null,null,null,null,null,null,null,null,""]
[null,null,null,null,null,null,null,null,null,null,null,null,null,null,null,""]
[null,null,null,null,null,null,null,null,null,null,null,null,null,null,null,""]
[null,null,null,null,null,null,null,null,null,null,null,null,null,null,null,""]
[null,null,null,null,null,null,null,null,null,null,null,null,null,null,null,""]
[null,null,null,null,null,null,null,null,null,null,null,null,null,null,null,""]
[null,null,null,null,null,null,null,null,null,null,null,null,null,null,null,""]
[null,null,null,null,null,null,null,null,null,null,null,null,null,null,null,""]
[null,null,null,null,null,null,null,null,null,null,null,null,null,null,null,""]
[null,null,null,null,null,null,null,null,null,null,null,null,null,null,null,""]
[null,null,null,null,null,null,null,null,null,null,null,null,null,null,null,""]
[null,null,null,null,null,null,null,null,null,null,null,null,null,null,null,""]
[null,null,null,null,null,null,null,null,null,null,null,null,null,null,null,""]
[null,null,null,null,null,null,null,null,null,null,null,null,null,null,null,""]
[null,null,null,null,null,null,null,null,null,null,null,null,null,null,null,""]
[null,null,null,null,null,null,null,null,null,null,null,null,null,null,null,""]
[null,null,null,null,null,null,null,null,null,null,null,null,null,null,null,""]
[null,null,null,null,null,null,null,null,null,null,null,null,null,null,null,""]
[null,null,null,null,null,null,null,null,null,null,null,null,null,null,null,""]
[null,null,null,null,null,null,null,null,null,null,null,null,null,null,null,""]
[null,null,null,null,null,null,null,null,null,null,null,null,null,null,null,""]
[null,null,null,null,null,null,null,null,null,null,null,null,null,null,null,""]
[null,null,null,null,null,null,null,null,null,null,null,null,null,null,null,""]
[null,null,null,null,null,null,null,null,null,null,null,null,null,null,null,""]
[null,null,null,null,null,null,null,null,null,null,null,null,null,null,null,""]
[null,null,null,null,null,null,null,null,null,null,null,null,null,null,null,""]
[null,null,null,null,null,null,null,null,null,null,null,null,null,null,null,""]
[null,null,null,null,null,null,null,null,null,null,null,null,null,null,null,""]
[null,null,null,null,null,null,null,null,null,null,null,null,null,null,null,""]
[null,null,null,null,null,null,null,null,null,null,null,null,null,null,null,""]
[null,null,null,null,null,null,null,null,null,null,null,null,null,null,null,""]
[null,null,null,null,null,null,null,null,null,null,null,null,null,null,null,""]
[null,null,null,null,null,null,null,null,null,null,null,null,null,null,null,""]
[null,null,null,null,null,null,null,null,null,null,null,null,null,null,null,""]
[null,null,null,null,null,null,null,null,null,null,null,null,null,null,null,""]
[null,null,null,null,null,null,null,null,null,null,null,null,null,null,null,""]
[null,null,null,null,null,null,null,null,null,null,null,null,null,null,null,""]
[null,null,null,null,null,null,null,null,null,null,null,null,null,null,null,""]
[null,null,null,null,null,null,null,null,null,null,null,null,null,null,null,""]
[null,null,null,null,null,null,null,null,null,null,null,null,null,null,null,""]
[null,null,null,null,null,null,null,null,null,null,null,null,null,null,null,""]
[null,null,null,null,null,null,null,null,null,null,null,null,null,null,null,""]
[null,null,null,null,null,null,null,null,null,null,null,null,null,null,null,""]
[null,null,null,null,null,null,null,null,null,null,null,null,null,null,null,{"$f":"IFERROR(IF(G1218=$X$3,$W$3,IF(G1218=$X$4,$W$4,IF(G1218=$X$5,$W$5,IF(G1218=$X$6,$W$6,IF(G1218=$X$7,$W$7,\"\"))))),0)","v":""}]
[null,null,null,null,null,null,null,null,null,null,null,null,null,null,null,""]
[null,null,null,null,null,null,null,null,null,null,null,null,null,null,null,""]
[null,null,null,null,null,null,null,null,null,null,null,null,null,null,null,""]
[null,null,null,null,null,null,null,null,null,null,null,null,null,null,null,""]
[null,null,null,null,null,null,null,null,null,null,null,null,null,null,null,""]
[null,null,null,null,null,null,null,null,null,null,null,null,null,null,null,""]
[null,null,null,null,null,null,null,null,null,null,null,null,null,null,null,""]
[null,null,null,null,null,null,null,null,null,null,null,null,null,null,null,""]
[null,null,null,null,null,null,null,null,null,null,null,null,null,null,null,""]
[null,null,null,null,null,null,null,null,null,null,null,null,null,null,null,""]
[null,null,null,null,null,null,null,null,null,null,null,null,null,null,null,""]
[null,null,null,null,null,null,null,null,null,null,null,null,null,null,null,""]
[null,null,null,null,null,null,null,null,null,null,null,null,null,null,null,""]
[null,null,null,null,null,null,null,null,null,null,null,null,null,null,null,""]
[null,null,null,null,null,null,null,null,null,null,null,null,null,null,null,""]
[null,null,null,null,null,null,null,null,null,null,null,null,null,null,null,""]
[null,null,null,null,null,null,null,null,null,null,null,null,null,null,null,""]
[null,null,null,null,null,null,null,null,null,null,null,null,null,null,null,""]
[null,null,null,null,null,null,null,null,null,null,null,null,null,null,null,""]
[null,null,null,null,null,null,null,null,null,null,null,null,null,null,null,""]
[null,null,null,null,null,null,null,null,null,null,null,null,null,null,null,""]
[null,null,null,null,null,null,null,null,null,null,null,null,null,null,null,""]
[null,null,null,null,null,null,null,null,null,null,null,null,null,null,null,""]
[null,null,null,null,null,null,null,null,null,null,null,null,null,null,null,""]
[null,null,null,null,null,null,null,null,null,null,null,null,null,null,null,""]
[null,null,null,null,null,null,null,null,null,null,null,null,null,null,null,""]
[null,null,null,null,null,null,null,null,null,null,null,null,null,null,null,""]
[null,null,null,null,null,null,null,null,null,null,null,null,null,null,null,""]
[null,null,null,null,null,null,null,null,null,null,null,null,null,null,null,""]
[null,null,null,null,null,null,null,null,null,null,null,null,null,null,null,""]
[null,null,null,null,null,null,null,null,null,null,null,null,null,null,null,""]
[null,null,null,null,null,null,null,null,null,null,null,null,null,null,null,""]
[null,null,null,null,null,null,null,null,null,null,null,null,null,null,null,""]
[null,null,null,null,null,null,null,null,null,null,null,null,null,null,null,""]
[null,null,null,null,null,null,null,null,null,null,null,null,null,null,null,""]
[null,null,null,null,null,null,null,null,null,null,null,null,null,null,null,""]
[null,null,null,null,null,null,null,null,null,null,null,null,null,null,null,""]
[null,null,null,null,null,null,null,null,null,null,null,null,null,null,null,""]
[null,null,null,null,null,null,null,null,null,null,null,null,null,null,null,""]
[null,null,null,null,null,null,null,null,null,null,null,null,null,null,null,""]
[null,null,null,null,null,null,null,null,null,null,null,null,null,null,null,""]
[null,null,null,null,null,null,null,null,null,null,null,null,null,null,null,""]
[null,null,null,null,null,null,null,null,null,null,null,null,null,null,null,""]
[null,null,null,null,null,null,null,null,null,null,null,null,null,null,null,""]
[null,null,null,null,null,null,null,null,null,null,null,null,null,null,null,""]
[null,null,null,null,null,null,null,null,null,null,null,null,null,null,null,""]
[null,null,null,null,null,null,null,null,null,null,null,null,null,null,null,""]
[null,null,null,null,null,null,null,null,null,null,null,null,null,null,null,""]
[null,null,null,null,null,null,null,null,null,null,null,null,null,null,null,""]
[null,null,null,null,null,null,null,null,null,null,null,null,null,null,null,""]
[null,null,null,null,null,null,null,null,null,null,null,null,null,null,null,""]
[null,null,null,null,null,null,null,null,null,null,null,null,null,null,null,""]
[null,null,null,null,null,null,null,null,null,null,null,null,null,null,null,""]
[null,null,null,null,null,null,null,null,null,null,null,null,null,null,null,""]
[null,null,null,null,null,null,null,null,null,null,null,null,null,null,null,""]
[null,null,null,null,null,null,null,null,null,null,null,null,null,null,null,""]
[null,null,null,null,null,null,null,null,null,null,null,null,null,null,null,""]
[null,null,null,null,null,null,null,null,null,null,null,null,null,null,null,""]
[null,null,null,null,null,null,null,null,null,null,null,null,null,null,null,""]
[null,null,null,null,null,null,null,null,null,null,null,null,null,null,null,""]
[null,null,null,null,null,null,null,null,null,null,null,null,null,null,null,""]
[null,null,null,null,null,null,null,null,null,null,null,null,null,null,null,""]
[null,null,null,null,null,null,null,null,null,null,null,null,null,null,null,""]
[null,null,null,null,null,null,null,null,null,null,null,null,null,null,null,{"$f":"IFERROR(IF(G1282=$X$3,$W$3,IF(G1282=$X$4,$W$4,IF(G1282=$X$5,$W$5,IF(G1282=$X$6,$W$6,IF(G1282=$X$7,$W$7,\"\"))))),0)","v":""}]
[null,null,null,null,null,null,null,null,null,null,null,null,null,null,null,""]
[null,null,null,null,null,null,null,null,null,null,null,null,null,null,null,""]
[null,null,null,null,null,null,null,null,null,null,null,null,null,null,null,""]
[null,null,null,null,null,null,null,null,null,null,null,null,null,null,null,""]
[null,null,null,null,null,null,null,null,null,null,null,null,null,null,null,""]
[null,null,null,null,null,null,null,null,null,null,null,null,null,null,null,""]
[null,null,null,null,null,null,null,null,null,null,null,null,null,null,null,""]
[null,null,null,null,null,null,null,null,null,null,null,null,null,null,null,""]
[null,null,null,null,null,null,null,null,null,null,null,null,null,null,null,""]
[null,null,null,null,null,null,null,null,null,null,null,null,null,null,null,""]
[null,null,null,null,null,null,null,null,null,null,null,null,null,null,null,""]
[null,null,null,null,null,null,null,null,null,null,null,null,null,null,null,""]
[null,null,null,null,null,null,null,null,null,null,null,null,null,null,null,""]
[null,null,null,null,null,null,null,null,null,null,null,null,null,null,null,""]
[null,null,null,null,null,null,null,null,null,null,null,null,null,null,null,""]
[null,null,null,null,null,null,null,null,null,null,null,null,null,null,null,""]
[null,null,null,null,null,null,null,null,null,null,null,null,null,null,null,""]
[null,null,null,null,null,null,null,null,null,null,null,null,null,null,null,""]
[null,null,null,null,null,null,null,null,null,null,null,null,null,null,null,""]
[null,null,null,null,null,null,null,null,null,null,null,null,null,null,null,""]
[null,null,null,null,null,null,null,null,null,null,null,null,null,null,null,""]
[null,null,null,null,null,null,null,null,null,null,null,null,null,null,null,""]
[null,null,null,null,null,null,null,null,null,null,null,null,null,null,null,""]
[null,null,null,null,null,null,null,null,null,null,null,null,null,null,null,""]
[null,null,null,null,null,null,null,null,null,null,null,null,null,null,null,""]
[null,null,null,null,null,null,null,null,null,null,null,null,null,null,null,""]
[null,null,null,null,null,null,null,null,null,null,null,null,null,null,null,""]
[null,null,null,null,null,null,null,null,null,null,null,null,null,null,null,""]
[null,null,null,null,null,null,null,null,null,null,null,null,null,null,null,""]
[null,null,null,null,null,null,null,null,null,null,null,null,null,null,null,""]
[null,null,null,null,null,null,null,null,null,null,null,null,null,null,null,""]
[null,null,null,null,null,null,null,null,null,null,null,null,null,null,null,""]
[null,null,null,null,null,null,null,null,null,null,null,null,null,null,null,""]
[null,null,null,null,null,null,null,null,null,null,null,null,null,null,null,""]
[null,null,null,null,null,null,null,null,null,null,null,null,null,null,null,""]
[null,null,null,null,null,null,null,null,null,null,null,null,null,null,null,""]
[null,null,null,null,null,null,null,null,null,null,null,null,null,null,null,""]
[null,null,null,null,null,null,null,null,null,null,null,null,null,null,null,""]
[null,null,null,null,null,null,null,null,null,null,null,null,null,null,null,""]
[null,null,null,null,null,null,null,null,null,null,null,null,null,null,null,""]
[null,null,null,null,null,null,null,null,null,null,null,null,null,null,null,""]
[null,null,null,null,null,null,null,null,null,null,null,null,null,null,null,""]
[null,null,null,null,null,null,null,null,null,null,null,null,null,null,null,""]
[null,null,null,null,null,null,null,null,null,null,null,null,null,null,null,""]
[null,null,null,null,null,null,null,null,null,null,null,null,null,null,null,""]
[null,null,null,null,null,null,null,null,null,null,null,null,null,null,null,""]
[null,null,null,null,null,null,null,null,null,null,null,null,null,null,null,""]
[null,null,null,null,null,null,null,null,null,null,null,null,null,null,null,""]
[null,null,null,null,null,null,null,null,null,null,null,null,null,null,null,""]
[null,null,null,null,null,null,null,null,null,null,null,null,null,null,null,""]
[null,null,null,null,null,null,null,null,null,null,null,null,null,null,null,""]
[null,null,null,null,null,null,null,null,null,null,null,null,null,null,null,""]
[null,null,null,null,null,null,null,null,null,null,null,null,null,null,null,""]
[null,null,null,null,null,null,null,null,null,null,null,null,null,null,null,""]
[null,null,null,null,null,null,null,null,null,null,null,null,null,null,null,""]
[null,null,null,null,null,null,null,null,null,null,null,null,null,null,null,""]
[null,null,null,null,null,null,null,null,null,null,null,null,null,null,null,""]
[null,null,null,null,null,null,null,null,null,null,null,null,null,null,null,""]
[null,null,null,null,null,null,null,null,null,null,null,null,null,null,null,""]
[null,null,null,null,null,null,null,null,null,null,null,null,null,null,null,""]
[null,null,null,null,null,null,null,null,null,null,null,null,null,null,null,""]
[null,null,null,null,null,null,null,null,null,null,null,null,null,null,null,""]
[null,null,null,null,null,null,null,null,null,null,null,null,null,null,null,""]
[null,null,null,null,null,null,null,null,null,null,null,null,null,null,null,{"$f":"IFERROR(IF(G1346=$X$3,$W$3,IF(G1346=$X$4,$W$4,IF(G1346=$X$5,$W$5,IF(G1346=$X$6,$W$6,IF(G1346=$X$7,$W$7,\"\"))))),0)","v":""}]
[null,null,null,null,null,null,null,null,null,null,null,null,null,null,null,""]
[null,null,null,null,null,null,null,null,null,null,null,null,null,null,null,""]
[null,null,null,null,null,null,null,null,null,null,null,null,null,null,null,""]
[null,null,null,null,null,null,null,null,null,null,null,null,null,null,null,""]
[null,null,null,null,null,null,null,null,null,null,null,null,null,null,null,""]
[null,null,null,null,null,null,null,null,null,null,null,null,null,null,null,""]
[null,null,null,null,null,null,null,null,null,null,null,null,null,null,null,""]
[null,null,null,null,null,null,null,null,null,null,null,null,null,null,null,""]
[null,null,null,null,null,null,null,null,null,null,null,null,null,null,null,""]
[null,null,null,null,null,null,null,null,null,null,null,null,null,null,null,""]
[null,null,null,null,null,null,null,null,null,null,null,null,null,null,null,""]
[null,null,null,null,null,null,null,null,null,null,null,null,null,null,null,""]
[null,null,null,null,null,null,null,null,null,null,null,null,null,null,null,""]
[null,null,null,null,null,null,null,null,null,null,null,null,null,null,null,""]
[null,null,null,null,null,null,null,null,null,null,null,null,null,null,null,""]
[null,null,null,null,null,null,null,null,null,null,null,null,null,null,null,""]
[null,null,null,null,null,null,null,null,null,null,null,null,null,null,null,""]
[null,null,null,null,null,null,null,null,null,null,null,null,null,null,null,""]
[null,null,null,null,null,null,null,null,null,null,null,null,null,null,null,""]
[null,null,null,null,null,null,null,null,null,null,null,null,null,null,null,""]
[null,null,null,null,null,null,null,null,null,null,null,null,null,null,null,""]
[null,null,null,null,null,null,null,null,null,null,null,null,null,null,null,""]
[null,null,null,null,null,null,null,null,null,null,null,null,null,null,null,""]
[null,null,null,null,null,null,null,null,null,null,null,null,null,null,null,""]
[null,null,null,null,null,null,null,null,null,null,null,null,null,null,null,""]
[null,null,null,null,null,null,null,null,null,null,null,null,null,null,null,""]
[null,null,null,null,null,null,null,null,null,null,null,null,null,null,null,""]
[null,null,null,null,null,null,null,null,null,null,null,null,null,null,null,""]
[null,null,null,null,null,null,null,null,null,null,null,null,null,null,null,""]
[null,null,null,null,null,null,null,null,null,null,null,null,null,null,null,""]
[null,null,null,null,null,null,null,null,null,null,null,null,null,null,null,""]
[null,null,null,null,null,null,null,null,null,null,null,null,null,null,null,""]
[null,null,null,null,null,null,null,null,null,null,null,null,null,null,null,""]
[null,null,null,null,null,null,null,null,null,null,null,null,null,null,null,""]
[null,null,null,null,null,null,null,null,null,null,null,null,null,null,null,""]
[null,null,null,null,null,null,null,null,null,null,null,null,null,null,null,""]
[null,null,null,null,null,null,null,null,null,null,null,null,null,null,null,""]
[null,null,null,null,null,null,null,null,null,null,null,null,null,null,null,""]
[null,null,null,null,null,null,null,null,null,null,null,null,null,null,null,""]
[null,null,null,null,null,null,null,null,null,null,null,null,null,null,null,""]
[null,null,null,null,null,null,null,null,null,null,null,null,null,null,null,""]
[null,null,null,null,null,null,null,null,null,null,null,null,null,null,null,""]
[null,null,null,null,null,null,null,null,null,null,null,null,null,null,null,""]
[null,null,null,null,null,null,null,null,null,null,null,null,null,null,null,""]
[null,null,null,null,null,null,null,null,null,null,null,null,null,null,null,""]

{"sheet":"الهاشمي","index":1,"n_rows":103,"n_cols":17,"rows_kept":103,"cut":false,"hidden":false,"merged":[[6,1,6,5],[7,1,7,5],[0,1,0,2],[1,1,1,2],[2,1,2,2],[3,1,3,2],[4,1,4,5],[5,1,5,5]]}
[null,"اسم الشركة",null,null,"تاريخ الكشف: ",{"$f":"TODAY()","v":"2018-02-28"}]
[null,"عنوان الشركة",null,null,"تاريخ الاستحقاق: ",{"$f":"TODAY()+30","v":"2018-03-30"}]
[null,"المدينة والرمز البريدي للشارع"]
[null,"الهاتف"]
[null,"كشف الحساب"]
[null,"اسم العميل"]
[null,"العنوان"]
[null,"المدينة والرمز البريدي للمنطقة"]
[null,"الرقم","التاريخ","رقم السند","المستأجر","رقم الجوال","رقم الشقه","البنايه","الفترة من","الفترة الي","المبلغ","التأمين","اتعاب المكتب","مصاريف اداريه","صيانه","مبلغ الضريبة","اسم العميل"]
[null,{"$f":"IF(C10=\"\",\"\",MAX($B$9:B9)+1)","v":1},"2018-02-28",2,"سيد محمد بانا",502233784,2,"البايونيه","2018-10-19","2020-04-19",16250,0,0,0,0,0,"الهاشمي"]
[null,{"$f":"IF(C11=\"\",\"\",MAX($B$9:B10)+1)","v":2},"2018-02-28",2,"سيد محمد بانا",502233784,2,"البايونيه","2018-10-19","2020-04-19",16250,0,0,0,0,0,"الهاشمي"]
[null,{"$f":"IF(C12=\"\",\"\",MAX($B$9:B11)+1)","v":3},"2018-02-28",2,"سيد محمد بانا",502233784,2,"البايونيه","2018-10-19","2020-04-19",16250,0,0,0,0,0,"الهاشمي"]
[null,{"$f":"IF(C13=\"\",\"\",MAX($B$9:B12)+1)","v":""}]
[null,{"$f":"IF(C14=\"\",\"\",MAX($B$9:B13)+1)","v":""}]
[null,{"$f":"IF(C15=\"\",\"\",MAX($B$9:B14)+1)","v":""}]
[null,{"$f":"IF(C16=\"\",\"\",MAX($B$9:B15)+1)","v":""}]
[null,{"$f":"IF(C17=\"\",\"\",MAX($B$9:B16)+1)","v":""}]
[null,{"$f":"IF(C18=\"\",\"\",MAX($B$9:B17)+1)","v":""}]
[null,{"$f":"IF(C19=\"\",\"\",MAX($B$9:B18)+1)","v":""}]
[null,{"$f":"IF(C20=\"\",\"\",MAX($B$9:B19)+1)","v":""}]
[null,{"$f":"IF(C21=\"\",\"\",MAX($B$9:B20)+1)","v":""}]
[null,{"$f":"IF(C22=\"\",\"\",MAX($B$9:B21)+1)","v":""}]
[null,{"$f":"IF(C23=\"\",\"\",MAX($B$9:B22)+1)","v":""}]
[null,{"$f":"IF(C24=\"\",\"\",MAX($B$9:B23)+1)","v":""}]
[null,{"$f":"IF(C25=\"\",\"\",MAX($B$9:B24)+1)","v":""}]
[null,{"$f":"IF(C26=\"\",\"\",MAX($B$9:B25)+1)","v":""}]
[null,{"$f":"IF(C27=\"\",\"\",MAX($B$9:B26)+1)","v":""}]
[null,{"$f":"IF(C28=\"\",\"\",MAX($B$9:B27)+1)","v":""}]
[null,{"$f":"IF(C29=\"\",\"\",MAX($B$9:B28)+1)","v":""}]
[null,{"$f":"IF(C30=\"\",\"\",MAX($B$9:B29)+1)","v":""}]
[null,{"$f":"IF(C31=\"\",\"\",MAX($B$9:B30)+1)","v":""}]
[null,{"$f":"IF(C32=\"\",\"\",MAX($B$9:B31)+1)","v":""}]
[null,{"$f":"IF(C33=\"\",\"\",MAX($B$9:B32)+1)","v":""}]
[null,{"$f":"IF(C34=\"\",\"\",MAX($B$9:B33)+1)","v":""}]
[null,{"$f":"IF(C35=\"\",\"\",MAX($B$9:B34)+1)","v":""}]
[null,{"$f":"IF(C36=\"\",\"\",MAX($B$9:B35)+1)","v":""}]
[null,{"$f":"IF(C37=\"\",\"\",MAX($B$9:B36)+1)","v":""}]
[null,{"$f":"IF(C38=\"\",\"\",MAX($B$9:B37)+1)","v":""}]
[null,{"$f":"IF(C39=\"\",\"\",MAX($B$9:B38)+1)","v":""}]
[null,{"$f":"IF(C40=\"\",\"\",MAX($B$9:B39)+1)","v":""}]
[null,{"$f":"IF(C41=\"\",\"\",MAX($B$9:B40)+1)","v":""}]
[null,{"$f":"IF(C42=\"\",\"\",MAX($B$9:B41)+1)","v":""}]
[null,{"$f":"IF(C43=\"\",\"\",MAX($B$9:B42)+1)","v":""}]
[null,{"$f":"IF(C44=\"\",\"\",MAX($B$9:B43)+1)","v":""}]
[null,{"$f":"IF(C45=\"\",\"\",MAX($B$9:B44)+1)","v":""}]
[null,{"$f":"IF(C46=\"\",\"\",MAX($B$9:B45)+1)","v":""}]
[null,{"$f":"IF(C47=\"\",\"\",MAX($B$9:B46)+1)","v":""}]
[null,{"$f":"IF(C48=\"\",\"\",MAX($B$9:B47)+1)","v":""}]
[null,{"$f":"IF(C49=\"\",\"\",MAX($B$9:B48)+1)","v":""}]
[null,{"$f":"IF(C50=\"\",\"\",MAX($B$9:B49)+1)","v":""}]
[null,{"$f":"IF(C51=\"\",\"\",MAX($B$9:B50)+1)","v":""}]
[null,{"$f":"IF(C52=\"\",\"\",MAX($B$9:B51)+1)","v":""}]
[null,{"$f":"IF(C53=\"\",\"\",MAX($B$9:B52)+1)","v":""}]
[null,{"$f":"IF(C54=\"\",\"\",MAX($B$9:B53)+1)","v":""}]
[null,{"$f":"IF(C55=\"\",\"\",MAX($B$9:B54)+1)","v":""}]
[null,{"$f":"IF(C56=\"\",\"\",MAX($B$9:B55)+1)","v":""}]
[null,{"$f":"IF(C57=\"\",\"\",MAX($B$9:B56)+1)","v":""}]
[null,{"$f":"IF(C58=\"\",\"\",MAX($B$9:B57)+1)","v":""}]
[null,{"$f":"IF(C59=\"\",\"\",MAX($B$9:B58)+1)","v":""}]
[null,{"$f":"IF(C60=\"\",\"\",MAX($B$9:B59)+1)","v":""}]
[null,{"$f":"IF(C61=\"\",\"\",MAX($B$9:B60)+1)","v":""}]
[null,{"$f":"IF(C62=\"\",\"\",MAX($B$9:B61)+1)","v":""}]
[null,{"$f":"IF(C63=\"\",\"\",MAX($B$9:B62)+1)","v":""}]
[null,{"$f":"IF(C64=\"\",\"\",MAX($B$9:B63)+1)","v":""}]
[null,{"$f":"IF(C65=\"\",\"\",MAX($B$9:B64)+1)","v":""}]
[null,{"$f":"IF(C66=\"\",\"\",MAX($B$9:B65)+1)","v":""}]
[null,{"$f":"IF(C67=\"\",\"\",MAX($B$9:B66)+1)","v":""}]
[null,{"$f":"IF(C68=\"\",\"\",MAX($B$9:B67)+1)","v":""}]
[null,{"$f":"IF(C69=\"\",\"\",MAX($B$9:B68)+1)","v":""}]
[null,{"$f":"IF(C70=\"\",\"\",MAX($B$9:B69)+1)","v":""}]
[null,{"$f":"IF(C71=\"\",\"\",MAX($B$9:B70)+1)","v":""}]
[null,{"$f":"IF(C72=\"\",\"\",MAX($B$9:B71)+1)","v":""}]
[null,{"$f":"IF(C73=\"\",\"\",MAX($B$9:B72)+1)","v":""}]
[null,{"$f":"IF(C74=\"\",\"\",MAX($B$9:B73)+1)","v":""}]
[null,{"$f":"IF(C75=\"\",\"\",MAX($B$9:B74)+1)","v":""}]
[null,{"$f":"IF(C76=\"\",\"\",MAX($B$9:B75)+1)","v":""}]
[null,{"$f":"IF(C77=\"\",\"\",MAX($B$9:B76)+1)","v":""}]
[null,{"$f":"IF(C78=\"\",\"\",MAX($B$9:B77)+1)","v":""}]
[null,{"$f":"IF(C79=\"\",\"\",MAX($B$9:B78)+1)","v":""}]
[null,{"$f":"IF(C80=\"\",\"\",MAX($B$9:B79)+1)","v":""}]
[null,{"$f":"IF(C81=\"\",\"\",MAX($B$9:B80)+1)","v":""}]
[null,{"$f":"IF(C82=\"\",\"\",MAX($B$9:B81)+1)","v":""}]
[null,{"$f":"IF(C83=\"\",\"\",MAX($B$9:B82)+1)","v":""}]
[null,{"$f":"IF(C84=\"\",\"\",MAX($B$9:B83)+1)","v":""}]
[null,{"$f":"IF(C85=\"\",\"\",MAX($B$9:B84)+1)","v":""}]
[null,{"$f":"IF(C86=\"\",\"\",MAX($B$9:B85)+1)","v":""}]
[null,{"$f":"IF(C87=\"\",\"\",MAX($B$9:B86)+1)","v":""}]
[null,{"$f":"IF(C88=\"\",\"\",MAX($B$9:B87)+1)","v":""}]
[null,{"$f":"IF(C89=\"\",\"\",MAX($B$9:B88)+1)","v":""}]
[null,{"$f":"IF(C90=\"\",\"\",MAX($B$9:B89)+1)","v":""}]
[null,{"$f":"IF(C91=\"\",\"\",MAX($B$9:B90)+1)","v":""}]
[null,{"$f":"IF(C92=\"\",\"\",MAX($B$9:B91)+1)","v":""}]
[null,{"$f":"IF(C93=\"\",\"\",MAX($B$9:B92)+1)","v":""}]
[null,{"$f":"IF(C94=\"\",\"\",MAX($B$9:B93)+1)","v":""}]
[null,{"$f":"IF(C95=\"\",\"\",MAX($B$9:B94)+1)","v":""}]
[null,{"$f":"IF(C96=\"\",\"\",MAX($B$9:B95)+1)","v":""}]
[null,{"$f":"IF(C97=\"\",\"\",MAX($B$9:B96)+1)","v":""}]
[null,{"$f":"IF(C98=\"\",\"\",MAX($B$9:B97)+1)","v":""}]
[null,{"$f":"IF(C99=\"\",\"\",MAX($B$9:B98)+1)","v":""}]
[null,{"$f":"IF(C100=\"\",\"\",MAX($B$9:B99)+1)","v":""}]
[null,{"$f":"IF(C101=\"\",\"\",MAX($B$9:B100)+1)","v":""}]
[null,{"$f":"IF(C102=\"\",\"\",MAX($B$9:B101)+1)","v":""}]
[null,{"$f":"IF(C103=\"\",\"\",MAX($B$9:B102)+1)","v":""}]

{"sheet":"محمد الخالدي","index":2,"n_rows":103,"n_cols":17,"rows_kept":103,"cut":false,"hidden":false,"merged":[[6,1,6,5],[7,1,7,5],[0,1,0,2],[1,1,1,2],[2,1,2,2],[3,1,3,2],[4,1,4,5],[5,1,5,5]]}
[null,"اسم الشركة",null,null,"تاريخ الكشف: ",{"$f":"TODAY()","v":"2018-02-28"}]
[null,"عنوان الشركة",null,null,"تاريخ الاستحقاق: ",{"$f":"TODAY()+30","v":"2018-03-30"}]
[null,"المدينة والرمز البريدي للشارع"]
[null,"الهاتف"]
[null,"كشف الحساب"]
[null,"اسم العميل"]
[null,"العنوان"]
[null,"المدينة والرمز البريدي للمنطقة"]
[null,"الرقم","التاريخ","رقم السند","المستأجر","رقم الجوال","رقم الشقه","البنايه","الفترة من","الفترة الي","المبلغ","التأمين","اتعاب المكتب","مصاريف اداريه","صيانه","مبلغ الضريبة","اسم العميل"]
[null,{"$f":"IF(C10=\"\",\"\",MAX($B$9:B9)+1)","v":1},"2018-02-28",4,"مبارك حسين",538616819,2,"الخالدي","2018-05-16","2019-10-16",16250,0,0,0,0,0,"محمد الخالدي"]
[null,{"$f":"IF(C11=\"\",\"\",MAX($B$9:B10)+1)","v":2},"2018-02-28",4,"مبارك حسين",538616819,2,"الخالدي","2018-05-16","2019-10-16",16250,0,0,0,0,0,"محمد الخالدي"]
[null,{"$f":"IF(C12=\"\",\"\",MAX($B$9:B11)+1)","v":3},"2018-02-28",4,"مبارك حسين",538616819,2,"الخالدي","2018-05-16","2019-10-16",16250,0,0,0,0,0,"محمد الخالدي"]
[null,{"$f":"IF(C13=\"\",\"\",MAX($B$9:B12)+1)","v":""}]
[null,{"$f":"IF(C14=\"\",\"\",MAX($B$9:B13)+1)","v":""}]
[null,{"$f":"IF(C15=\"\",\"\",MAX($B$9:B14)+1)","v":""}]
[null,{"$f":"IF(C16=\"\",\"\",MAX($B$9:B15)+1)","v":""}]
[null,{"$f":"IF(C17=\"\",\"\",MAX($B$9:B16)+1)","v":""}]
[null,{"$f":"IF(C18=\"\",\"\",MAX($B$9:B17)+1)","v":""}]
[null,{"$f":"IF(C19=\"\",\"\",MAX($B$9:B18)+1)","v":""}]
[null,{"$f":"IF(C20=\"\",\"\",MAX($B$9:B19)+1)","v":""}]
[null,{"$f":"IF(C21=\"\",\"\",MAX($B$9:B20)+1)","v":""}]
[null,{"$f":"IF(C22=\"\",\"\",MAX($B$9:B21)+1)","v":""}]
[null,{"$f":"IF(C23=\"\",\"\",MAX($B$9:B22)+1)","v":""}]
[null,{"$f":"IF(C24=\"\",\"\",MAX($B$9:B23)+1)","v":""}]
[null,{"$f":"IF(C25=\"\",\"\",MAX($B$9:B24)+1)","v":""}]
[null,{"$f":"IF(C26=\"\",\"\",MAX($B$9:B25)+1)","v":""}]
[null,{"$f":"IF(C27=\"\",\"\",MAX($B$9:B26)+1)","v":""}]
[null,{"$f":"IF(C28=\"\",\"\",MAX($B$9:B27)+1)","v":""}]
[null,{"$f":"IF(C29=\"\",\"\",MAX($B$9:B28)+1)","v":""}]
[null,{"$f":"IF(C30=\"\",\"\",MAX($B$9:B29)+1)","v":""}]
[null,{"$f":"IF(C31=\"\",\"\",MAX($B$9:B30)+1)","v":""}]
[null,{"$f":"IF(C32=\"\",\"\",MAX($B$9:B31)+1)","v":""}]
[null,{"$f":"IF(C33=\"\",\"\",MAX($B$9:B32)+1)","v":""}]
[null,{"$f":"IF(C34=\"\",\"\",MAX($B$9:B33)+1)","v":""}]
[null,{"$f":"IF(C35=\"\",\"\",MAX($B$9:B34)+1)","v":""}]
[null,{"$f":"IF(C36=\"\",\"\",MAX($B$9:B35)+1)","v":""}]
[null,{"$f":"IF(C37=\"\",\"\",MAX($B$9:B36)+1)","v":""}]
[null,{"$f":"IF(C38=\"\",\"\",MAX($B$9:B37)+1)","v":""}]
[null,{"$f":"IF(C39=\"\",\"\",MAX($B$9:B38)+1)","v":""}]
[null,{"$f":"IF(C40=\"\",\"\",MAX($B$9:B39)+1)","v":""}]
[null,{"$f":"IF(C41=\"\",\"\",MAX($B$9:B40)+1)","v":""}]
[null,{"$f":"IF(C42=\"\",\"\",MAX($B$9:B41)+1)","v":""}]
[null,{"$f":"IF(C43=\"\",\"\",MAX($B$9:B42)+1)","v":""}]
[null,{"$f":"IF(C44=\"\",\"\",MAX($B$9:B43)+1)","v":""}]
[null,{"$f":"IF(C45=\"\",\"\",MAX($B$9:B44)+1)","v":""}]
[null,{"$f":"IF(C46=\"\",\"\",MAX($B$9:B45)+1)","v":""}]
[null,{"$f":"IF(C47=\"\",\"\",MAX($B$9:B46)+1)","v":""}]
[null,{"$f":"IF(C48=\"\",\"\",MAX($B$9:B47)+1)","v":""}]
[null,{"$f":"IF(C49=\"\",\"\",MAX($B$9:B48)+1)","v":""}]
[null,{"$f":"IF(C50=\"\",\"\",MAX($B$9:B49)+1)","v":""}]
[null,{"$f":"IF(C51=\"\",\"\",MAX($B$9:B50)+1)","v":""}]
[null,{"$f":"IF(C52=\"\",\"\",MAX($B$9:B51)+1)","v":""}]
[null,{"$f":"IF(C53=\"\",\"\",MAX($B$9:B52)+1)","v":""}]
[null,{"$f":"IF(C54=\"\",\"\",MAX($B$9:B53)+1)","v":""}]
[null,{"$f":"IF(C55=\"\",\"\",MAX($B$9:B54)+1)","v":""}]
[null,{"$f":"IF(C56=\"\",\"\",MAX($B$9:B55)+1)","v":""}]
[null,{"$f":"IF(C57=\"\",\"\",MAX($B$9:B56)+1)","v":""}]
[null,{"$f":"IF(C58=\"\",\"\",MAX($B$9:B57)+1)","v":""}]
[null,{"$f":"IF(C59=\"\",\"\",MAX($B$9:B58)+1)","v":""}]
[null,{"$f":"IF(C60=\"\",\"\",MAX($B$9:B59)+1)","v":""}]
[null,{"$f":"IF(C61=\"\",\"\",MAX($B$9:B60)+1)","v":""}]
[null,{"$f":"IF(C62=\"\",\"\",MAX($B$9:B61)+1)","v":""}]
[null,{"$f":"IF(C63=\"\",\"\",MAX($B$9:B62)+1)","v":""}]
[null,{"$f":"IF(C64=\"\",\"\",MAX($B$9:B63)+1)","v":""}]
[null,{"$f":"IF(C65=\"\",\"\",MAX($B$9:B64)+1)","v":""}]
[null,{"$f":"IF(C66=\"\",\"\",MAX($B$9:B65)+1)","v":""}]
[null,{"$f":"IF(C67=\"\",\"\",MAX($B$9:B66)+1)","v":""}]
[null,{"$f":"IF(C68=\"\",\"\",MAX($B$9:B67)+1)","v":""}]
[null,{"$f":"IF(C69=\"\",\"\",MAX($B$9:B68)+1)","v":""}]
[null,{"$f":"IF(C70=\"\",\"\",MAX($B$9:B69)+1)","v":""}]
[null,{"$f":"IF(C71=\"\",\"\",MAX($B$9:B70)+1)","v":""}]
[null,{"$f":"IF(C72=\"\",\"\",MAX($B$9:B71)+1)","v":""}]
[null,{"$f":"IF(C73=\"\",\"\",MAX($B$9:B72)+1)","v":""}]
[null,{"$f":"IF(C74=\"\",\"\",MAX($B$9:B73)+1)","v":""}]
[null,{"$f":"IF(C75=\"\",\"\",MAX($B$9:B74)+1)","v":""}]
[null,{"$f":"IF(C76=\"\",\"\",MAX($B$9:B75)+1)","v":""}]
[null,{"$f":"IF(C77=\"\",\"\",MAX($B$9:B76)+1)","v":""}]
[null,{"$f":"IF(C78=\"\",\"\",MAX($B$9:B77)+1)","v":""}]
[null,{"$f":"IF(C79=\"\",\"\",MAX($B$9:B78)+1)","v":""}]
[null,{"$f":"IF(C80=\"\",\"\",MAX($B$9:B79)+1)","v":""}]
[null,{"$f":"IF(C81=\"\",\"\",MAX($B$9:B80)+1)","v":""}]
[null,{"$f":"IF(C82=\"\",\"\",MAX($B$9:B81)+1)","v":""}]
[null,{"$f":"IF(C83=\"\",\"\",MAX($B$9:B82)+1)","v":""}]
[null,{"$f":"IF(C84=\"\",\"\",MAX($B$9:B83)+1)","v":""}]
[null,{"$f":"IF(C85=\"\",\"\",MAX($B$9:B84)+1)","v":""}]
[null,{"$f":"IF(C86=\"\",\"\",MAX($B$9:B85)+1)","v":""}]
[null,{"$f":"IF(C87=\"\",\"\",MAX($B$9:B86)+1)","v":""}]
[null,{"$f":"IF(C88=\"\",\"\",MAX($B$9:B87)+1)","v":""}]
[null,{"$f":"IF(C89=\"\",\"\",MAX($B$9:B88)+1)","v":""}]
[null,{"$f":"IF(C90=\"\",\"\",MAX($B$9:B89)+1)","v":""}]
[null,{"$f":"IF(C91=\"\",\"\",MAX($B$9:B90)+1)","v":""}]
[null,{"$f":"IF(C92=\"\",\"\",MAX($B$9:B91)+1)","v":""}]
[null,{"$f":"IF(C93=\"\",\"\",MAX($B$9:B92)+1)","v":""}]
[null,{"$f":"IF(C94=\"\",\"\",MAX($B$9:B93)+1)","v":""}]
[null,{"$f":"IF(C95=\"\",\"\",MAX($B$9:B94)+1)","v":""}]
[null,{"$f":"IF(C96=\"\",\"\",MAX($B$9:B95)+1)","v":""}]
[null,{"$f":"IF(C97=\"\",\"\",MAX($B$9:B96)+1)","v":""}]
[null,{"$f":"IF(C98=\"\",\"\",MAX($B$9:B97)+1)","v":""}]
[null,{"$f":"IF(C99=\"\",\"\",MAX($B$9:B98)+1)","v":""}]
[null,{"$f":"IF(C100=\"\",\"\",MAX($B$9:B99)+1)","v":""}]
[null,{"$f":"IF(C101=\"\",\"\",MAX($B$9:B100)+1)","v":""}]
[null,{"$f":"IF(C102=\"\",\"\",MAX($B$9:B101)+1)","v":""}]
[null,{"$f":"IF(C103=\"\",\"\",MAX($B$9:B102)+1)","v":""}]

{"sheet":"ابو سعود","index":3,"n_rows":103,"n_cols":17,"rows_kept":103,"cut":false,"hidden":false,"merged":[[6,1,6,5],[7,1,7,5],[0,1,0,2],[1,1,1,2],[2,1,2,2],[3,1,3,2],[4,1,4,5],[5,1,5,5]]}
[null,"اسم الشركة",null,null,"تاريخ الكشف: ",{"$f":"TODAY()","v":"2018-02-28"}]
[null,"عنوان الشركة",null,null,"تاريخ الاستحقاق: ",{"$f":"TODAY()+30","v":"2018-03-30"}]
[null,"المدينة والرمز البريدي للشارع"]
[null,"الهاتف"]
[null,"كشف الحساب"]
[null,"اسم العميل"]
[null,"العنوان"]
[null,"المدينة والرمز البريدي للمنطقة"]
[null,"الرقم","التاريخ","رقم السند","المستأجر","رقم الجوال","رقم الشقه","البنايه","الفترة من","الفترة الي","المبلغ","التأمين","اتعاب المكتب","مصاريف اداريه","صيانه","مبلغ الضريبة","اسم العميل"]
[null,{"$f":"IF(C10=\"\",\"\",MAX($B$9:B9)+1)","v":1},"2018-02-28",3,"محمد",509859849,2,"ناصر","2018-05-24","2019-02-24",16250,0,0,0,0,0,"أبو سعود"]
[null,{"$f":"IF(C11=\"\",\"\",MAX($B$9:B10)+1)","v":2},"2018-02-28",3,"محمد",509859849,2,"ناصر","2018-05-24","2019-02-24",16250,0,0,0,0,0,"أبو سعود"]
[null,{"$f":"IF(C12=\"\",\"\",MAX($B$9:B11)+1)","v":3},"2018-02-28",3,"محمد",509859849,2,"ناصر","2018-05-24","2019-02-24",16250,0,0,0,0,0,"أبو سعود"]
[null,{"$f":"IF(C13=\"\",\"\",MAX($B$9:B12)+1)","v":""}]
[null,{"$f":"IF(C14=\"\",\"\",MAX($B$9:B13)+1)","v":""}]
[null,{"$f":"IF(C15=\"\",\"\",MAX($B$9:B14)+1)","v":""}]
[null,{"$f":"IF(C16=\"\",\"\",MAX($B$9:B15)+1)","v":""}]
[null,{"$f":"IF(C17=\"\",\"\",MAX($B$9:B16)+1)","v":""}]
[null,{"$f":"IF(C18=\"\",\"\",MAX($B$9:B17)+1)","v":""}]
[null,{"$f":"IF(C19=\"\",\"\",MAX($B$9:B18)+1)","v":""}]
[null,{"$f":"IF(C20=\"\",\"\",MAX($B$9:B19)+1)","v":""}]
[null,{"$f":"IF(C21=\"\",\"\",MAX($B$9:B20)+1)","v":""}]
[null,{"$f":"IF(C22=\"\",\"\",MAX($B$9:B21)+1)","v":""}]
[null,{"$f":"IF(C23=\"\",\"\",MAX($B$9:B22)+1)","v":""}]
[null,{"$f":"IF(C24=\"\",\"\",MAX($B$9:B23)+1)","v":""}]
[null,{"$f":"IF(C25=\"\",\"\",MAX($B$9:B24)+1)","v":""}]
[null,{"$f":"IF(C26=\"\",\"\",MAX($B$9:B25)+1)","v":""}]
[null,{"$f":"IF(C27=\"\",\"\",MAX($B$9:B26)+1)","v":""}]
[null,{"$f":"IF(C28=\"\",\"\",MAX($B$9:B27)+1)","v":""}]
[null,{"$f":"IF(C29=\"\",\"\",MAX($B$9:B28)+1)","v":""}]
[null,{"$f":"IF(C30=\"\",\"\",MAX($B$9:B29)+1)","v":""}]
[null,{"$f":"IF(C31=\"\",\"\",MAX($B$9:B30)+1)","v":""}]
[null,{"$f":"IF(C32=\"\",\"\",MAX($B$9:B31)+1)","v":""}]
[null,{"$f":"IF(C33=\"\",\"\",MAX($B$9:B32)+1)","v":""}]
[null,{"$f":"IF(C34=\"\",\"\",MAX($B$9:B33)+1)","v":""}]
[null,{"$f":"IF(C35=\"\",\"\",MAX($B$9:B34)+1)","v":""}]
[null,{"$f":"IF(C36=\"\",\"\",MAX($B$9:B35)+1)","v":""}]
[null,{"$f":"IF(C37=\"\",\"\",MAX($B$9:B36)+1)","v":""}]
[null,{"$f":"IF(C38=\"\",\"\",MAX($B$9:B37)+1)","v":""}]
[null,{"$f":"IF(C39=\"\",\"\",MAX($B$9:B38)+1)","v":""}]
[null,{"$f":"IF(C40=\"\",\"\",MAX($B$9:B39)+1)","v":""}]
[null,{"$f":"IF(C41=\"\",\"\",MAX($B$9:B40)+1)","v":""}]
[null,{"$f":"IF(C42=\"\",\"\",MAX($B$9:B41)+1)","v":""}]
[null,{"$f":"IF(C43=\"\",\"\",MAX($B$9:B42)+1)","v":""}]
[null,{"$f":"IF(C44=\"\",\"\",MAX($B$9:B43)+1)","v":""}]
[null,{"$f":"IF(C45=\"\",\"\",MAX($B$9:B44)+1)","v":""}]
[null,{"$f":"IF(C46=\"\",\"\",MAX($B$9:B45)+1)","v":""}]
[null,{"$f":"IF(C47=\"\",\"\",MAX($B$9:B46)+1)","v":""}]
[null,{"$f":"IF(C48=\"\",\"\",MAX($B$9:B47)+1)","v":""}]
[null,{"$f":"IF(C49=\"\",\"\",MAX($B$9:B48)+1)","v":""}]
[null,{"$f":"IF(C50=\"\",\"\",MAX($B$9:B49)+1)","v":""}]
[null,{"$f":"IF(C51=\"\",\"\",MAX($B$9:B50)+1)","v":""}]
[null,{"$f":"IF(C52=\"\",\"\",MAX($B$9:B51)+1)","v":""}]
[null,{"$f":"IF(C53=\"\",\"\",MAX($B$9:B52)+1)","v":""}]
[null,{"$f":"IF(C54=\"\",\"\",MAX($B$9:B53)+1)","v":""}]
[null,{"$f":"IF(C55=\"\",\"\",MAX($B$9:B54)+1)","v":""}]
[null,{"$f":"IF(C56=\"\",\"\",MAX($B$9:B55)+1)","v":""}]
[null,{"$f":"IF(C57=\"\",\"\",MAX($B$9:B56)+1)","v":""}]
[null,{"$f":"IF(C58=\"\",\"\",MAX($B$9:B57)+1)","v":""}]
[null,{"$f":"IF(C59=\"\",\"\",MAX($B$9:B58)+1)","v":""}]
[null,{"$f":"IF(C60=\"\",\"\",MAX($B$9:B59)+1)","v":""}]
[null,{"$f":"IF(C61=\"\",\"\",MAX($B$9:B60)+1)","v":""}]
[null,{"$f":"IF(C62=\"\",\"\",MAX($B$9:B61)+1)","v":""}]
[null,{"$f":"IF(C63=\"\",\"\",MAX($B$9:B62)+1)","v":""}]
[null,{"$f":"IF(C64=\"\",\"\",MAX($B$9:B63)+1)","v":""}]
[null,{"$f":"IF(C65=\"\",\"\",MAX($B$9:B64)+1)","v":""}]
[null,{"$f":"IF(C66=\"\",\"\",MAX($B$9:B65)+1)","v":""}]
[null,{"$f":"IF(C67=\"\",\"\",MAX($B$9:B66)+1)","v":""}]
[null,{"$f":"IF(C68=\"\",\"\",MAX($B$9:B67)+1)","v":""}]
[null,{"$f":"IF(C69=\"\",\"\",MAX($B$9:B68)+1)","v":""}]
[null,{"$f":"IF(C70=\"\",\"\",MAX($B$9:B69)+1)","v":""}]
[null,{"$f":"IF(C71=\"\",\"\",MAX($B$9:B70)+1)","v":""}]
[null,{"$f":"IF(C72=\"\",\"\",MAX($B$9:B71)+1)","v":""}]
[null,{"$f":"IF(C73=\"\",\"\",MAX($B$9:B72)+1)","v":""}]
[null,{"$f":"IF(C74=\"\",\"\",MAX($B$9:B73)+1)","v":""}]
[null,{"$f":"IF(C75=\"\",\"\",MAX($B$9:B74)+1)","v":""}]
[null,{"$f":"IF(C76=\"\",\"\",MAX($B$9:B75)+1)","v":""}]
[null,{"$f":"IF(C77=\"\",\"\",MAX($B$9:B76)+1)","v":""}]
[null,{"$f":"IF(C78=\"\",\"\",MAX($B$9:B77)+1)","v":""}]
[null,{"$f":"IF(C79=\"\",\"\",MAX($B$9:B78)+1)","v":""}]
[null,{"$f":"IF(C80=\"\",\"\",MAX($B$9:B79)+1)","v":""}]
[null,{"$f":"IF(C81=\"\",\"\",MAX($B$9:B80)+1)","v":""}]
[null,{"$f":"IF(C82=\"\",\"\",MAX($B$9:B81)+1)","v":""}]
[null,{"$f":"IF(C83=\"\",\"\",MAX($B$9:B82)+1)","v":""}]
[null,{"$f":"IF(C84=\"\",\"\",MAX($B$9:B83)+1)","v":""}]
[null,{"$f":"IF(C85=\"\",\"\",MAX($B$9:B84)+1)","v":""}]
[null,{"$f":"IF(C86=\"\",\"\",MAX($B$9:B85)+1)","v":""}]
[null,{"$f":"IF(C87=\"\",\"\",MAX($B$9:B86)+1)","v":""}]
[null,{"$f":"IF(C88=\"\",\"\",MAX($B$9:B87)+1)","v":""}]
[null,{"$f":"IF(C89=\"\",\"\",MAX($B$9:B88)+1)","v":""}]
[null,{"$f":"IF(C90=\"\",\"\",MAX($B$9:B89)+1)","v":""}]
[null,{"$f":"IF(C91=\"\",\"\",MAX($B$9:B90)+1)","v":""}]
[null,{"$f":"IF(C92=\"\",\"\",MAX($B$9:B91)+1)","v":""}]
[null,{"$f":"IF(C93=\"\",\"\",MAX($B$9:B92)+1)","v":""}]
[null,{"$f":"IF(C94=\"\",\"\",MAX($B$9:B93)+1)","v":""}]
[null,{"$f":"IF(C95=\"\",\"\",MAX($B$9:B94)+1)","v":""}]
[null,{"$f":"IF(C96=\"\",\"\",MAX($B$9:B95)+1)","v":""}]
[null,{"$f":"IF(C97=\"\",\"\",MAX($B$9:B96)+1)","v":""}]
[null,{"$f":"IF(C98=\"\",\"\",MAX($B$9:B97)+1)","v":""}]
[null,{"$f":"IF(C99=\"\",\"\",MAX($B$9:B98)+1)","v":""}]
[null,{"$f":"IF(C100=\"\",\"\",MAX($B$9:B99)+1)","v":""}]
[null,{"$f":"IF(C101=\"\",\"\",MAX($B$9:B100)+1)","v":""}]
[null,{"$f":"IF(C102=\"\",\"\",MAX($B$9:B101)+1)","v":""}]
[null,{"$f":"IF(C103=\"\",\"\",MAX($B$9:B102)+1)","v":""}]

{"sheet":"الهديب","index":4,"n_rows":103,"n_cols":17,"rows_kept":103,"cut":false,"hidden":false,"merged":[[6,1,6,5],[7,1,7,5],[0,1,0,2],[1,1,1,2],[2,1,2,2],[3,1,3,2],[4,1,4,5],[5,1,5,5]]}
[null,"اسم الشركة",null,null,"تاريخ الكشف: ",{"$f":"TODAY()","v":"2018-02-28"}]
[null,"عنوان الشركة",null,null,"تاريخ الاستحقاق: ",{"$f":"TODAY()+30","v":"2018-03-30"}]
[null,"المدينة والرمز البريدي للشارع"]
[null,"الهاتف"]
[null,"كشف الحساب"]
[null,"اسم العميل"]
[null,"العنوان"]
[null,"المدينة والرمز البريدي للمنطقة"]
[null,"الرقم","التاريخ","رقم السند","المستأجر","رقم الجوال","رقم الشقه","البنايه","الفترة من","الفترة الي","المبلغ","التأمين","اتعاب المكتب","مصاريف اداريه","صيانه","مبلغ الضريبة","اسم العميل"]
[null,{"$f":"IF(C10=\"\",\"\",MAX($B$9:B9)+1)","v":1},"2018-02-28",1,"وئل فتحي بوغولة",535266463,103,"الجوهرة","2018-07-09","2019-01-09",16250,0,0,0,0,0,"الهديب"]
[null,{"$f":"IF(C11=\"\",\"\",MAX($B$9:B10)+1)","v":2},"2018-02-28",1,"وئل فتحي بوغولة",535266463,103,"الجوهرة","2018-07-09","2019-01-09",16250,0,0,0,0,0,"الهديب"]
[null,{"$f":"IF(C12=\"\",\"\",MAX($B$9:B11)+1)","v":3},"2018-02-28",1,"وئل فتحي بوغولة",535266463,103,"الجوهرة","2018-07-09","2019-01-09",16250,0,0,0,0,0,"الهديب"]
[null,{"$f":"IF(C13=\"\",\"\",MAX($B$9:B12)+1)","v":""}]
[null,{"$f":"IF(C14=\"\",\"\",MAX($B$9:B13)+1)","v":""}]
[null,{"$f":"IF(C15=\"\",\"\",MAX($B$9:B14)+1)","v":""}]
[null,{"$f":"IF(C16=\"\",\"\",MAX($B$9:B15)+1)","v":""}]
[null,{"$f":"IF(C17=\"\",\"\",MAX($B$9:B16)+1)","v":""}]
[null,{"$f":"IF(C18=\"\",\"\",MAX($B$9:B17)+1)","v":""}]
[null,{"$f":"IF(C19=\"\",\"\",MAX($B$9:B18)+1)","v":""}]
[null,{"$f":"IF(C20=\"\",\"\",MAX($B$9:B19)+1)","v":""}]
[null,{"$f":"IF(C21=\"\",\"\",MAX($B$9:B20)+1)","v":""}]
[null,{"$f":"IF(C22=\"\",\"\",MAX($B$9:B21)+1)","v":""}]
[null,{"$f":"IF(C23=\"\",\"\",MAX($B$9:B22)+1)","v":""}]
[null,{"$f":"IF(C24=\"\",\"\",MAX($B$9:B23)+1)","v":""}]
[null,{"$f":"IF(C25=\"\",\"\",MAX($B$9:B24)+1)","v":""}]
[null,{"$f":"IF(C26=\"\",\"\",MAX($B$9:B25)+1)","v":""}]
[null,{"$f":"IF(C27=\"\",\"\",MAX($B$9:B26)+1)","v":""}]
[null,{"$f":"IF(C28=\"\",\"\",MAX($B$9:B27)+1)","v":""}]
[null,{"$f":"IF(C29=\"\",\"\",MAX($B$9:B28)+1)","v":""}]
[null,{"$f":"IF(C30=\"\",\"\",MAX($B$9:B29)+1)","v":""}]
[null,{"$f":"IF(C31=\"\",\"\",MAX($B$9:B30)+1)","v":""}]
[null,{"$f":"IF(C32=\"\",\"\",MAX($B$9:B31)+1)","v":""}]
[null,{"$f":"IF(C33=\"\",\"\",MAX($B$9:B32)+1)","v":""}]
[null,{"$f":"IF(C34=\"\",\"\",MAX($B$9:B33)+1)","v":""}]
[null,{"$f":"IF(C35=\"\",\"\",MAX($B$9:B34)+1)","v":""}]
[null,{"$f":"IF(C36=\"\",\"\",MAX($B$9:B35)+1)","v":""}]
[null,{"$f":"IF(C37=\"\",\"\",MAX($B$9:B36)+1)","v":""}]
[null,{"$f":"IF(C38=\"\",\"\",MAX($B$9:B37)+1)","v":""}]
[null,{"$f":"IF(C39=\"\",\"\",MAX($B$9:B38)+1)","v":""}]
[null,{"$f":"IF(C40=\"\",\"\",MAX($B$9:B39)+1)","v":""}]
[null,{"$f":"IF(C41=\"\",\"\",MAX($B$9:B40)+1)","v":""}]
[null,{"$f":"IF(C42=\"\",\"\",MAX($B$9:B41)+1)","v":""}]
[null,{"$f":"IF(C43=\"\",\"\",MAX($B$9:B42)+1)","v":""}]
[null,{"$f":"IF(C44=\"\",\"\",MAX($B$9:B43)+1)","v":""}]
[null,{"$f":"IF(C45=\"\",\"\",MAX($B$9:B44)+1)","v":""}]
[null,{"$f":"IF(C46=\"\",\"\",MAX($B$9:B45)+1)","v":""}]
[null,{"$f":"IF(C47=\"\",\"\",MAX($B$9:B46)+1)","v":""}]
[null,{"$f":"IF(C48=\"\",\"\",MAX($B$9:B47)+1)","v":""}]
[null,{"$f":"IF(C49=\"\",\"\",MAX($B$9:B48)+1)","v":""}]
[null,{"$f":"IF(C50=\"\",\"\",MAX($B$9:B49)+1)","v":""}]
[null,{"$f":"IF(C51=\"\",\"\",MAX($B$9:B50)+1)","v":""}]
[null,{"$f":"IF(C52=\"\",\"\",MAX($B$9:B51)+1)","v":""}]
[null,{"$f":"IF(C53=\"\",\"\",MAX($B$9:B52)+1)","v":""}]
[null,{"$f":"IF(C54=\"\",\"\",MAX($B$9:B53)+1)","v":""}]
[null,{"$f":"IF(C55=\"\",\"\",MAX($B$9:B54)+1)","v":""}]
[null,{"$f":"IF(C56=\"\",\"\",MAX($B$9:B55)+1)","v":""}]
[null,{"$f":"IF(C57=\"\",\"\",MAX($B$9:B56)+1)","v":""}]
[null,{"$f":"IF(C58=\"\",\"\",MAX($B$9:B57)+1)","v":""}]
[null,{"$f":"IF(C59=\"\",\"\",MAX($B$9:B58)+1)","v":""}]
[null,{"$f":"IF(C60=\"\",\"\",MAX($B$9:B59)+1)","v":""}]
[null,{"$f":"IF(C61=\"\",\"\",MAX($B$9:B60)+1)","v":""}]
[null,{"$f":"IF(C62=\"\",\"\",MAX($B$9:B61)+1)","v":""}]
[null,{"$f":"IF(C63=\"\",\"\",MAX($B$9:B62)+1)","v":""}]
[null,{"$f":"IF(C64=\"\",\"\",MAX($B$9:B63)+1)","v":""}]
[null,{"$f":"IF(C65=\"\",\"\",MAX($B$9:B64)+1)","v":""}]
[null,{"$f":"IF(C66=\"\",\"\",MAX($B$9:B65)+1)","v":""}]
[null,{"$f":"IF(C67=\"\",\"\",MAX($B$9:B66)+1)","v":""}]
[null,{"$f":"IF(C68=\"\",\"\",MAX($B$9:B67)+1)","v":""}]
[null,{"$f":"IF(C69=\"\",\"\",MAX($B$9:B68)+1)","v":""}]
[null,{"$f":"IF(C70=\"\",\"\",MAX($B$9:B69)+1)","v":""}]
[null,{"$f":"IF(C71=\"\",\"\",MAX($B$9:B70)+1)","v":""}]
[null,{"$f":"IF(C72=\"\",\"\",MAX($B$9:B71)+1)","v":""}]
[null,{"$f":"IF(C73=\"\",\"\",MAX($B$9:B72)+1)","v":""}]
[null,{"$f":"IF(C74=\"\",\"\",MAX($B$9:B73)+1)","v":""}]
[null,{"$f":"IF(C75=\"\",\"\",MAX($B$9:B74)+1)","v":""}]
[null,{"$f":"IF(C76=\"\",\"\",MAX($B$9:B75)+1)","v":""}]
[null,{"$f":"IF(C77=\"\",\"\",MAX($B$9:B76)+1)","v":""}]
[null,{"$f":"IF(C78=\"\",\"\",MAX($B$9:B77)+1)","v":""}]
[null,{"$f":"IF(C79=\"\",\"\",MAX($B$9:B78)+1)","v":""}]
[null,{"$f":"IF(C80=\"\",\"\",MAX($B$9:B79)+1)","v":""}]
[null,{"$f":"IF(C81=\"\",\"\",MAX($B$9:B80)+1)","v":""}]
[null,{"$f":"IF(C82=\"\",\"\",MAX($B$9:B81)+1)","v":""}]
[null,{"$f":"IF(C83=\"\",\"\",MAX($B$9:B82)+1)","v":""}]
[null,{"$f":"IF(C84=\"\",\"\",MAX($B$9:B83)+1)","v":""}]
[null,{"$f":"IF(C85=\"\",\"\",MAX($B$9:B84)+1)","v":""}]
[null,{"$f":"IF(C86=\"\",\"\",MAX($B$9:B85)+1)","v":""}]
[null,{"$f":"IF(C87=\"\",\"\",MAX($B$9:B86)+1)","v":""}]
[null,{"$f":"IF(C88=\"\",\"\",MAX($B$9:B87)+1)","v":""}]
[null,{"$f":"IF(C89=\"\",\"\",MAX($B$9:B88)+1)","v":""}]
[null,{"$f":"IF(C90=\"\",\"\",MAX($B$9:B89)+1)","v":""}]
[null,{"$f":"IF(C91=\"\",\"\",MAX($B$9:B90)+1)","v":""}]
[null,{"$f":"IF(C92=\"\",\"\",MAX($B$9:B91)+1)","v":""}]
[null,{"$f":"IF(C93=\"\",\"\",MAX($B$9:B92)+1)","v":""}]
[null,{"$f":"IF(C94=\"\",\"\",MAX($B$9:B93)+1)","v":""}]
[null,{"$f":"IF(C95=\"\",\"\",MAX($B$9:B94)+1)","v":""}]
[null,{"$f":"IF(C96=\"\",\"\",MAX($B$9:B95)+1)","v":""}]
[null,{"$f":"IF(C97=\"\",\"\",MAX($B$9:B96)+1)","v":""}]
[null,{"$f":"IF(C98=\"\",\"\",MAX($B$9:B97)+1)","v":""}]
[null,{"$f":"IF(C99=\"\",\"\",MAX($B$9:B98)+1)","v":""}]
[null,{"$f":"IF(C100=\"\",\"\",MAX($B$9:B99)+1)","v":""}]
[null,{"$f":"IF(C101=\"\",\"\",MAX($B$9:B100)+1)","v":""}]
[null,{"$f":"IF(C102=\"\",\"\",MAX($B$9:B101)+1)","v":""}]
[null,{"$f":"IF(C103=\"\",\"\",MAX($B$9:B102)+1)","v":""}]